Workbook

Sheet Tabelle1
A1: B-Nr. | B1: B-Datum | C1: Beleg | D1: vom | E1: Lgr | F1: KS | G1: KT | H1: HT | I1: St. | J1: St.-Typ | K1: Sachkonto | L1: Geldkonto | M1: Betrag Soll € | N1: Betrag Haben € | O1: Aktenzeichen | P1: Btr-Gruppe | Q1: Buchungstext | R1: Rechnungsnummer | S1: Mitgliedsnummer
A2: 1445 | B2: 31.01.2024 | C2: 49 | D2: 09.01.2024 | H2: 1 | I2: 0 | J2: B | K2: 19107 | L2: 900000 | M2: 27.128,43 | O2: ******************* | Q2: ******************* | R2: ******************* | Z2: =N2+M2 -> 27128.43
A3: 8589 | B3: 31.01.2024 | C3: 344 | D3: 30.01.2024 | H3: 1 | I3: 0 | J3: B | K3: 19107 | L3: 900000 | N3: 27.128,43 | O3: ******************* | Q3: ******************* | R3: ******************* | Z3: 27128.43
A4: 72428 | B4: 29.02.2024 | C4: 26662 | D4: 23.02.2024 | H4: 1 | I4: 0 | J4: B | K4: 19107 | L4: 900000 | N4: 25.694,16 | O4: ******************* | Q4: ******************* | R4: ******************* | Z4: 25694.16
A5: 319713 | B5: 30.06.2024 | C5: 131053 | D5: 14.06.2024 | H5: 1 | I5: 0 | J5: B | K5: 19107 | L5: 900000 | N5: 24.116,34 | O5: ******************* | Q5: ******************* | R5: ******************* | Z5: 24116.34
A6: 8601 | B6: 31.01.2024 | C6: 344 | D6: 30.01.2024 | H6: 1 | I6: 0 | J6: B | K6: 19107 | L6: 900000 | N6: 24.008,34 | O6: ******************* | Q6: ******************* | R6: ******************* | Z6: 24008.34
A7: 2109 | B7: 31.01.2024 | C7: 72 | D7: 12.01.2024 | H7: 1 | I7: 0 | J7: B | K7: 19107 | L7: 900000 | M7: 23.221,94 | O7: ******************* | Q7: ******************* | R7: ******************* | Z7: 23221.94
A8: 8591 | B8: 31.01.2024 | C8: 344 | D8: 30.01.2024 | H8: 1 | I8: 0 | J8: B | K8: 19107 | L8: 900000 | N8: 23.221,94 | O8: ******************* | Q8: ******************* | R8: ******************* | Z8: 23221.94
A9: 607045 | B9: 15.11.2024 | C9: 186060 | D9: 09.10.2024 | H9: 1 | I9: 0 | J9: B | K9: 19107 | L9: 2000 | M9: 22.440,00 | O9: ******************* | Q9: ******************* | R9: ******************* | Z9: 22440
A10: 67206 | B10: 29.02.2024 | C10: 26445 | D10: 09.02.2024 | H10: 1 | I10: 0 | J10: B | K10: 19107 | L10: 900000 | M10: 18.412,81 | O10: ******************* | Q10: ******************* | R10: ******************* | Z10: 18412.81
A11: 72432 | B11: 29.02.2024 | C11: 26662 | D11: 23.02.2024 | H11: 1 | I11: 0 | J11: B | K11: 19107 | L11: 900000 | N11: 18.412,81 | O11: ******************* | Q11: ******************* | R11: ******************* | Z11: 18412.81
A12: 504033 | B12: 09.09.2024 | C12: 184156 | D12: 06.08.2024 | H12: 1 | I12: 0 | J12: B | K12: 19107 | L12: 800001 | N12: 18.087,26 | O12: ******************* | Q12: ******************* | R12: ******************* | Z12: 18087.26
A13: 504114 | B13: 10.09.2024 | C13: 184225 | D13: 06.08.2024 | H13: 1 | I13: 0 | J13: B | K13: 19107 | L13: 2000 | M13: 18.087,26 | O13: ******************* | Q13: ******************* | R13: ******************* | Z13: 18087.26
A14: 520137 | B14: 26.09.2024 | C14: 184613 | D14: 22.07.2024 | H14: 1 | I14: 0 | J14: B | K14: 19107 | L14: 2000 | M14: 14.329,17 | O14: ******************* | Q14: ******************* | R14: ******************* | Z14: 14329.17
A15: 622941 | B15: 02.12.2024 | C15: 186682 | D15: 02.12.2024 | H15: 1 | I15: 0 | J15: B | K15: 19107 | L15: 800001 | N15: 14.329,17 | O15: ******************* | Q15: ******************* | R15: ******************* | Z15: 14329.17
A16: 72430 | B16: 29.02.2024 | C16: 26662 | D16: 23.02.2024 | H16: 1 | I16: 0 | J16: B | K16: 19107 | L16: 900000 | N16: 13.837,52 | O16: ******************* | Q16: ******************* | R16: ******************* | Z16: 13837.52
A17: 2376 | B17: 31.01.2024 | C17: 82 | D17: 15.01.2024 | H17: 1 | I17: 0 | J17: B | K17: 19107 | L17: 900000 | M17: 13.060,95 | O17: ******************* | Q17: ******************* | R17: ******************* | Z17: 13060.95
A18: 8593 | B18: 31.01.2024 | C18: 344 | D18: 30.01.2024 | H18: 1 | I18: 0 | J18: B | K18: 19107 | L18: 900000 | N18: 13.060,95 | O18: ******************* | Q18: ******************* | R18: ******************* | Z18: 13060.95
A19: 136979 | B19: 31.03.2024 | C19: 53903 | D19: 11.03.2024 | H19: 1 | I19: 0 | J19: B | K19: 19107 | L19: 900000 | M19: 12.458,85 | O19: ******************* | Q19: ******************* | R19: ******************* | Z19: 12458.85
A20: 144346 | B20: 31.03.2024 | C20: 54201 | D20: 02.04.2024 | H20: 1 | I20: 0 | J20: B | K20: 19107 | L20: 900000 | N20: 12.458,85 | O20: ******************* | Q20: ******************* | R20: ******************* | Z20: 12458.85
A21: 1450 | B21: 31.01.2024 | C21: 49 | D21: 09.01.2024 | H21: 1 | I21: 0 | J21: B | K21: 19107 | L21: 900000 | M21: 11.978,02 | O21: ******************* | Q21: ******************* | R21: ******************* | Z21: 11978.02
A22: 8549 | B22: 31.01.2024 | C22: 342 | D22: 30.01.2024 | H22: 1 | I22: 0 | J22: B | K22: 19107 | L22: 900000 | N22: 11.978,02 | O22: ******************* | Q22: ******************* | R22: ******************* | Z22: 11978.02
A23: 442270 | B23: 06.08.2024 | C23: 183198 | D23: 06.08.2024 | H23: 1 | I23: 0 | J23: B | K23: 19107 | L23: 800001 | N23: 11.446,43 | O23: ******************* | Q23: ******************* | R23: ******************* | Z23: 11446.43
A24: 660322 | B24: 13.12.2024 | C24: 187426 | D24: 03.12.2024 | H24: 1 | I24: 0 | J24: B | K24: 19107 | L24: 2000 | M24: 10.600,52 | O24: ******************* | Q24: ******************* | R24: ******************* | Z24: 10600.52
A25: 443772 | B25: 20.08.2024 | C25: 183561 | D25: 12.08.2024 | H25: 1 | I25: 0 | J25: B | K25: 19107 | L25: 2000 | M25: 8.796,00 | O25: ******************* | Q25: ******************* | R25: ******************* | Z25: 8796
A26: 451177 | B26: 27.08.2024 | C26: 183738 | D26: 12.08.2024 | H26: 1 | I26: 0 | J26: B | K26: 19107 | L26: 2000 | M26: 8.796,00 | O26: ******************* | Q26: ******************* | R26: ******************* | Z26: 8796
A27: 140204 | B27: 31.03.2024 | C27: 54027 | D27: 18.03.2024 | H27: 1 | I27: 0 | J27: B | K27: 19107 | L27: 900000 | N27: 7.474,92 | O27: ******************* | Q27: ******************* | R27: ******************* | Z27: 7474.92
A28: 256552 | B28: 31.05.2024 | C28: 105305 | D28: 07.05.2024 | H28: 1 | I28: 0 | J28: B | K28: 19107 | L28: 900000 | M28: 7.387,22 | O28: ******************* | Q28: ******************* | R28: ******************* | Z28: 7387.22
A29: 319114 | B29: 30.06.2024 | C29: 131028 | D29: 13.06.2024 | H29: 1 | I29: 0 | J29: B | K29: 19107 | L29: 900000 | N29: 7.387,22 | O29: ******************* | Q29: ******************* | R29: ******************* | Z29: 7387.22
A30: 596754 | B30: 05.11.2024 | C30: 185850 | D30: 25.10.2024 | H30: 1 | I30: 0 | J30: B | K30: 19107 | L30: 2000 | M30: 6.833,51 | O30: ******************* | Q30: ******************* | R30: ******************* | Z30: 6833.51
A31: 1435 | B31: 31.01.2024 | C31: 49 | D31: 09.01.2024 | H31: 1 | I31: 0 | J31: B | K31: 19107 | L31: 900000 | M31: 6.827,39 | O31: ******************* | Q31: ******************* | R31: ******************* | Z31: 6827.39
A32: 8557 | B32: 31.01.2024 | C32: 342 | D32: 30.01.2024 | H32: 1 | I32: 0 | J32: B | K32: 19107 | L32: 900000 | N32: 6.827,39 | O32: ******************* | Q32: ******************* | R32: ******************* | Z32: 6827.39
A33: 144350 | B33: 31.03.2024 | C33: 54201 | D33: 02.04.2024 | H33: 1 | I33: 0 | J33: B | K33: 19107 | L33: 900000 | N33: 6.823,28 | O33: ******************* | Q33: ******************* | R33: ******************* | Z33: 6823.28
A34: 654701 | B34: 09.12.2024 | C34: 187124 | D34: 02.12.2024 | H34: 1 | I34: 0 | J34: B | K34: 19107 | L34: 2000 | M34: 6.766,34 | O34: ******************* | Q34: ******************* | R34: ******************* | Z34: 6766.34
A35: 7782 | B35: 31.01.2024 | C35: 312 | D35: 26.01.2024 | H35: 1 | I35: 0 | J35: B | K35: 19107 | L35: 900000 | M35: 6.467,10 | O35: ******************* | Q35: ******************* | R35: ******************* | Z35: 6467.1
A36: 68438 | B36: 29.02.2024 | C36: 26494 | D36: 13.02.2024 | H36: 1 | I36: 0 | J36: B | K36: 19107 | L36: 900000 | N36: 6.467,10 | O36: ******************* | Q36: ******************* | R36: ******************* | Z36: 6467.1
A37: 7777 | B37: 31.01.2024 | C37: 312 | D37: 26.01.2024 | H37: 1 | I37: 0 | J37: B | K37: 19107 | L37: 900000 | M37: 6.069,00 | O37: ******************* | Q37: ******************* | R37: ******************* | Z37: 6069
A38: 68440 | B38: 29.02.2024 | C38: 26494 | D38: 13.02.2024 | H38: 1 | I38: 0 | J38: B | K38: 19107 | L38: 900000 | N38: 6.069,00 | O38: ******************* | Q38: ******************* | R38: ******************* | Z38: 6069
A39: 605510 | B39: 14.11.2024 | C39: 186034 | D39: 28.10.2024 | H39: 1 | I39: 0 | J39: B | K39: 19107 | L39: 2000 | M39: 6.028,93 | O39: ******************* | Q39: ******************* | R39: ******************* | Z39: 6028.93
A40: 567756 | B40: 25.10.2024 | C40: 185613 | D40: 17.10.2024 | H40: 1 | I40: 0 | J40: B | K40: 19107 | L40: 2000 | M40: 5.898,94 | O40: ******************* | Q40: ******************* | R40: ******************* | Z40: 5898.94
A41: 898 | B41: 31.01.2024 | C41: 29 | D41: 05.01.2024 | H41: 1 | I41: 0 | J41: B | K41: 19107 | L41: 900000 | M41: 5.753,42 | O41: ******************* | Q41: ******************* | R41: ******************* | Z41: 5753.42
A42: 8575 | B42: 31.01.2024 | C42: 343 | D42: 30.01.2024 | H42: 1 | I42: 0 | J42: B | K42: 19107 | L42: 900000 | N42: 5.753,42 | O42: ******************* | Q42: ******************* | R42: ******************* | Z42: 5753.42
A43: 263687 | B43: 31.05.2024 | C43: 105610 | D43: 27.05.2024 | H43: 1 | I43: 0 | J43: B | K43: 19107 | L43: 900000 | M43: 5.576,16 | O43: ******************* | Q43: ******************* | R43: ******************* | Z43: 5576.16
A44: 319146 | B44: 30.06.2024 | C44: 131030 | D44: 13.06.2024 | H44: 1 | I44: 0 | J44: B | K44: 19107 | L44: 900000 | N44: 5.576,16 | O44: ******************* | Q44: ******************* | R44: ******************* | Z44: 5576.16
A45: 72123 | B45: 29.02.2024 | C45: 26647 | D45: 23.02.2024 | H45: 1 | I45: 0 | J45: B | K45: 19107 | L45: 900000 | M45: 5.545,45 | O45: ******************* | Q45: ******************* | R45: ******************* | Z45: 5545.45
A46: 137451 | B46: 31.03.2024 | C46: 53924 | D46: 12.03.2024 | H46: 1 | I46: 0 | J46: B | K46: 19107 | L46: 900000 | N46: 5.545,45 | O46: ******************* | Q46: ******************* | R46: ******************* | Z46: 5545.45
A47: 138587 | B47: 31.03.2024 | C47: 53957 | D47: 14.03.2024 | H47: 1 | I47: 0 | J47: B | K47: 19107 | L47: 900000 | M47: 5.381,18 | O47: ******************* | Q47: ******************* | R47: ******************* | Z47: 5381.18
A48: 144583 | B48: 31.03.2024 | C48: 54234 | D48: 11.04.2024 | H48: 1 | I48: 0 | J48: B | K48: 19107 | L48: 900000 | N48: 5.381,18 | O48: ******************* | Q48: ******************* | R48: ******************* | Z48: 5381.18
A49: 500267 | B49: 04.09.2024 | C49: 184042 | D49: 29.07.2024 | H49: 1 | I49: 0 | J49: B | K49: 19107 | L49: 2000 | M49: 5.147,22 | O49: ******************* | Q49: ******************* | R49: ******************* | Z49: 5147.22
A50: 622975 | B50: 02.12.2024 | C50: 186694 | D50: 02.12.2024 | H50: 1 | I50: 0 | J50: B | K50: 19107 | L50: 800001 | N50: 5.147,22 | O50: ******************* | Q50: ******************* | R50: ******************* | Z50: 5147.22
A51: 141222 | B51: 31.03.2024 | C51: 54068 | D51: 22.03.2024 | H51: 1 | I51: 0 | J51: B | K51: 19107 | L51: 900000 | M51: 4.906,79 | O51: ******************* | Q51: ******************* | R51: ******************* | Z51: 4906.79
A52: 204405 | B52: 30.04.2024 | C52: 80181 | D52: 02.05.2024 | H52: 1 | I52: 0 | J52: B | K52: 19107 | L52: 900000 | N52: 4.906,79 | O52: ******************* | Q52: ******************* | R52: ******************* | Z52: 4906.79
A53: 613125 | B53: 21.11.2024 | C53: 186207 | D53: 31.10.2024 | H53: 1 | I53: 0 | J53: B | K53: 19107 | L53: 62100 | M53: 4.468,43 | O53: ******************* | Q53: ******************* | R53: ******************* | Z53: 4468.43
A54: 73569 | B54: 29.02.2024 | C54: 26710 | D54: 27.02.2024 | H54: 1 | I54: 0 | J54: B | K54: 19107 | L54: 900000 | N54: 4.103,24 | O54: ******************* | Q54: ******************* | R54: ******************* | Z54: 4103.24
A55: 65626 | B55: 29.02.2024 | C55: 26380 | D55: 06.02.2024 | H55: 1 | I55: 0 | J55: B | K55: 19107 | L55: 900000 | M55: 4.063,36 | O55: ******************* | Q55: ******************* | R55: ******************* | Z55: 4063.36
A56: 73605 | B56: 29.02.2024 | C56: 26712 | D56: 27.02.2024 | H56: 1 | I56: 0 | J56: B | K56: 19107 | L56: 900000 | N56: 4.063,36 | O56: ******************* | Q56: ******************* | R56: ******************* | Z56: 4063.36
A57: 136562 | B57: 31.03.2024 | C57: 53885 | D57: 08.03.2024 | H57: 1 | I57: 0 | J57: B | K57: 19107 | L57: 900000 | M57: 4.063,36 | O57: ******************* | Q57: ******************* | R57: ******************* | Z57: 4063.36
A58: 142576 | B58: 31.03.2024 | C58: 54125 | D58: 27.03.2024 | H58: 1 | I58: 0 | J58: B | K58: 19107 | L58: 900000 | M58: 4.063,36 | O58: ******************* | Q58: ******************* | R58: ******************* | Z58: 4063.36
A59: 144378 | B59: 31.03.2024 | C59: 54202 | D59: 02.04.2024 | H59: 1 | I59: 0 | J59: B | K59: 19107 | L59: 900000 | N59: 4.063,36 | O59: ******************* | Q59: ******************* | R59: ******************* | Z59: 4063.36
A60: 204391 | B60: 30.04.2024 | C60: 80180 | D60: 02.05.2024 | H60: 1 | I60: 0 | J60: B | K60: 19107 | L60: 900000 | N60: 4.063,36 | O60: ******************* | Q60: ******************* | R60: ******************* | Z60: 4063.36
A61: 264926 | B61: 31.05.2024 | C61: 105664 | D61: 30.05.2024 | H61: 1 | I61: 0 | J61: B | K61: 19107 | L61: 900000 | M61: 4.063,36 | O61: ******************* | Q61: ******************* | R61: ******************* | Z61: 4063.36
A62: 265054 | B62: 31.05.2024 | C62: 105669 | D62: 30.05.2024 | H62: 1 | I62: 0 | J62: B | K62: 19107 | L62: 900000 | M62: 4.063,36 | O62: ******************* | Q62: ******************* | R62: ******************* | Z62: 4063.36
A63: 381646 | B63: 26.07.2024 | C63: 156776 | D63: 05.07.2024 | H63: 1 | I63: 0 | J63: B | K63: 19107 | L63: 900000 | N63: 4.063,36 | O63: ******************* | Q63: ******************* | R63: ******************* | Z63: 4063.36
A64: 381666 | B64: 26.07.2024 | C64: 156777 | D64: 05.07.2024 | H64: 1 | I64: 0 | J64: B | K64: 19107 | L64: 900000 | N64: 4.063,36 | O64: ******************* | Q64: ******************* | R64: ******************* | Z64: 4063.36
A65: 384102 | B65: 26.07.2024 | C65: 156869 | D65: 12.07.2024 | H65: 1 | I65: 0 | J65: B | K65: 19107 | L65: 900000 | M65: 4.063,36 | O65: ******************* | Q65: ******************* | R65: ******************* | Z65: 4063.36
A66: 520133 | B66: 26.09.2024 | C66: 184612 | D66: 20.08.2024 | H66: 1 | I66: 0 | J66: B | K66: 19107 | L66: 2000 | M66: 4.041,51 | O66: ******************* | Q66: ******************* | R66: ******************* | Z66: =N66+M66 -> 4041.51
A67: 533145 | B67: 07.10.2024 | C67: 184989 | D67: 20.09.2024 | H67: 1 | I67: 0 | J67: B | K67: 19107 | L67: 2000 | M67: 4.041,51 | O67: ******************* | Q67: ******************* | R67: ******************* | Z67: 4041.51
A68: 607041 | B68: 15.11.2024 | C68: 186060 | D68: 21.10.2024 | H68: 1 | I68: 0 | J68: B | K68: 19107 | L68: 2000 | M68: 4.041,51 | O68: ******************* | Q68: ******************* | R68: ******************* | Z68: 4041.51
A69: 622913 | B69: 02.12.2024 | C69: 186671 | D69: 02.12.2024 | H69: 1 | I69: 0 | J69: B | K69: 19107 | L69: 800001 | N69: 4.041,51 | O69: ******************* | Q69: ******************* | R69: ******************* | Z69: 4041.51
A70: 622915 | B70: 02.12.2024 | C70: 186671 | D70: 02.12.2024 | H70: 1 | I70: 0 | J70: B | K70: 19107 | L70: 800001 | N70: 4.041,51 | O70: ******************* | Q70: ******************* | R70: ******************* | Z70: 4041.51
A71: 622917 | B71: 02.12.2024 | C71: 186671 | D71: 02.12.2024 | H71: 1 | I71: 0 | J71: B | K71: 19107 | L71: 800001 | N71: 4.041,51 | O71: ******************* | Q71: ******************* | R71: ******************* | Z71: 4041.51
A72: 658874 | B72: 12.12.2024 | C72: 187308 | D72: 20.11.2024 | H72: 1 | I72: 0 | J72: B | K72: 19107 | L72: 2000 | M72: 4.041,51 | O72: ******************* | Q72: ******************* | R72: ******************* | Z72: 4041.51
A73: 264101 | B73: 31.05.2024 | C73: 105627 | D73: 27.05.2024 | H73: 1 | I73: 0 | J73: B | K73: 19107 | L73: 900000 | N73: 4.033,74 | O73: ******************* | Q73: ******************* | R73: ******************* | Z73: 4033.74
A74: 259226 | B74: 31.05.2024 | C74: 105423 | D74: 15.05.2024 | H74: 1 | I74: 0 | J74: B | K74: 19107 | L74: 900000 | M74: 3.955,47 | O74: ******************* | Q74: ******************* | R74: ******************* | Z74: 3955.47
A75: 383906 | B75: 26.07.2024 | C75: 156863 | D75: 12.07.2024 | H75: 1 | I75: 0 | J75: B | K75: 19107 | L75: 900000 | N75: 3.955,47 | O75: ******************* | Q75: ******************* | R75: ******************* | Z75: 3955.47
A76: 318747 | B76: 30.06.2024 | C76: 131011 | D76: 13.06.2024 | H76: 1 | I76: 0 | J76: B | K76: 19107 | L76: 900000 | M76: 3.794,03 | O76: ******************* | Q76: ******************* | R76: ******************* | Z76: 3794.03
A77: 390062 | B77: 26.07.2024 | C77: 157119 | D77: 24.07.2024 | H77: 1 | I77: 0 | J77: B | K77: 19107 | L77: 900000 | N77: 3.794,03 | O77: ******************* | Q77: ******************* | R77: ******************* | Z77: 3794.03
A78: 506 | B78: 31.01.2024 | C78: 14 | D78: 04.01.2024 | H78: 1 | I78: 0 | J78: B | K78: 19107 | L78: 900000 | M78: 3.726,28 | O78: ******************* | Q78: ******************* | R78: ******************* | Z78: 3726.28
A79: 2382 | B79: 31.01.2024 | C79: 83 | D79: 15.01.2024 | H79: 1 | I79: 0 | J79: B | K79: 19107 | L79: 900000 | N79: 3.726,28 | O79: ******************* | Q79: ******************* | R79: ******************* | Z79: 3726.28
A80: 137465 | B80: 31.03.2024 | C80: 53925 | D80: 12.03.2024 | H80: 1 | I80: 0 | J80: B | K80: 19107 | L80: 900000 | N80: 3.726,28 | O80: ******************* | Q80: ******************* | R80: ******************* | Z80: 3726.28
A81: 319711 | B81: 30.06.2024 | C81: 131053 | D81: 14.06.2024 | H81: 1 | I81: 0 | J81: B | K81: 19107 | L81: 900000 | N81: 3.632,22 | O81: ******************* | Q81: ******************* | R81: ******************* | Z81: 3632.22
A82: 135897 | B82: 31.03.2024 | C82: 53855 | D82: 06.03.2024 | H82: 1 | I82: 0 | J82: B | K82: 19107 | L82: 900000 | M82: 3.475,36 | O82: ******************* | Q82: ******************* | R82: ******************* | Z82: 3475.36
A83: 144366 | B83: 31.03.2024 | C83: 54202 | D83: 02.04.2024 | H83: 1 | I83: 0 | J83: B | K83: 19107 | L83: 900000 | N83: 3.475,36 | O83: ******************* | Q83: ******************* | R83: ******************* | Z83: 3475.36
A84: 265950 | B84: 31.05.2024 | C84: 105696 | D84: 03.06.2024 | H84: 1 | I84: 0 | J84: B | K84: 19107 | L84: 900000 | M84: 3.475,36 | O84: ******************* | Q84: ******************* | R84: ******************* | Z84: 3475.36
A85: 381658 | B85: 26.07.2024 | C85: 156777 | D85: 05.07.2024 | H85: 1 | I85: 0 | J85: B | K85: 19107 | L85: 900000 | N85: 3.475,36 | O85: ******************* | Q85: ******************* | R85: ******************* | Z85: 3475.36
A86: 621652 | B86: 28.11.2024 | C86: 186544 | D86: 20.11.2024 | H86: 1 | I86: 0 | J86: B | K86: 19107 | L86: 2000 | M86: 3.384,48 | O86: ******************* | Q86: ******************* | R86: ******************* | Z86: 3384.48
A87: 66535 | B87: 29.02.2024 | C87: 26422 | D87: 08.02.2024 | H87: 1 | I87: 0 | J87: B | K87: 19107 | L87: 900000 | M87: 3.150,83 | O87: ******************* | Q87: ******************* | R87: ******************* | Z87: 3150.83
A88: 520130 | B88: 26.09.2024 | C88: 184611 | D88: 23.09.2024 | H88: 1 | I88: 0 | J88: B | K88: 19107 | L88: 2000 | M88: 3.046,40 | O88: ******************* | Q88: ******************* | R88: ******************* | Z88: 3046.4
A89: 622895 | B89: 02.12.2024 | C89: 186663 | D89: 02.12.2024 | H89: 1 | I89: 0 | J89: B | K89: 19107 | L89: 800001 | N89: 3.046,40 | O89: ******************* | Q89: ******************* | R89: ******************* | Z89: 3046.4
A90: 663754 | B90: 17.12.2024 | C90: 187538 | D90: 31.12.2024 | I90: 0 | J90: B | K90: 19107 | L90: 900001 | M90: 2.938,81 | O90: ******************* | Q90: ******************* | R90: ******************* | Z90: 2938.81
A91: 386461 | B91: 26.07.2024 | C91: 156970 | D91: 17.07.2024 | H91: 1 | I91: 0 | J91: B | K91: 19107 | L91: 900000 | M91: 2.906,15 | O91: ******************* | Q91: ******************* | R91: ******************* | Z91: 2906.15
A92: 607032 | B92: 15.11.2024 | C92: 186060 | D92: 08.11.2024 | H92: 1 | I92: 0 | J92: B | K92: 19107 | L92: 2000 | M92: 2.906,15 | O92: ******************* | Q92: ******************* | R92: ******************* | Z92: 2906.15
A93: 518437 | B93: 25.09.2024 | C93: 184557 | D93: 23.09.2024 | H93: 1 | I93: 0 | J93: B | K93: 19107 | L93: 2000 | M93: 2.849,26 | O93: ******************* | Q93: ******************* | R93: ******************* | Z93: 2849.26
A94: 137467 | B94: 31.03.2024 | C94: 53925 | D94: 12.03.2024 | H94: 1 | I94: 0 | J94: B | K94: 19107 | L94: 900000 | N94: 2.832,20 | O94: ******************* | Q94: ******************* | R94: ******************* | Z94: 2832.2
A95: 323186 | B95: 30.06.2024 | C95: 131204 | D95: 21.06.2024 | H95: 1 | I95: 0 | J95: B | K95: 19107 | L95: 900000 | M95: 2.828,16 | O95: ******************* | Q95: ******************* | R95: ******************* | Z95: 2828.16
A96: 390064 | B96: 26.07.2024 | C96: 157119 | D96: 24.07.2024 | H96: 1 | I96: 0 | J96: B | K96: 19107 | L96: 900000 | N96: 2.828,16 | O96: ******************* | Q96: ******************* | R96: ******************* | Z96: 2828.16
A97: 3753 | B97: 31.01.2024 | C97: 141 | D97: 17.01.2024 | H97: 1 | I97: 0 | J97: B | K97: 19107 | L97: 900000 | M97: 2.803,88 | O97: ******************* | Q97: ******************* | R97: ******************* | Z97: 2803.88
A98: 8599 | B98: 31.01.2024 | C98: 344 | D98: 30.01.2024 | H98: 1 | I98: 0 | J98: B | K98: 19107 | L98: 900000 | N98: 2.803,88 | O98: ******************* | Q98: ******************* | R98: ******************* | Z98: 2803.88
A99: 136577 | B99: 31.03.2024 | C99: 53885 | D99: 08.03.2024 | H99: 1 | I99: 0 | J99: B | K99: 19107 | L99: 900000 | M99: 2.626,24 | O99: ******************* | Q99: ******************* | R99: ******************* | Z99: 2626.24
A100: 144370 | B100: 31.03.2024 | C100: 54202 | D100: 02.04.2024 | H100: 1 | I100: 0 | J100: B | K100: 19107 | L100: 900000 | N100: 2.626,24 | O100: ******************* | Q100: ******************* | R100: ******************* | Z100: 2626.24
A101: 317073 | B101: 30.06.2024 | C101: 130946 | D101: 07.06.2024 | H101: 1 | I101: 0 | J101: B | K101: 19107 | L101: 900000 | M101: 2.626,24 | O101: ******************* | Q101: ******************* | R101: ******************* | Z101: 2626.24
A102: 381668 | B102: 26.07.2024 | C102: 156777 | D102: 05.07.2024 | H102: 1 | I102: 0 | J102: B | K102: 19107 | L102: 900000 | N102: 2.626,24 | O102: ******************* | Q102: ******************* | R102: ******************* | Z102: 2626.24
A103: 501912 | B103: 05.09.2024 | C103: 184090 | D103: 02.09.2024 | H103: 1 | I103: 0 | J103: B | K103: 19107 | L103: 2000 | M103: 2.626,24 | O103: ******************* | Q103: ******************* | R103: ******************* | Z103: 2626.24
A104: 622883 | B104: 02.12.2024 | C104: 186657 | D104: 02.12.2024 | H104: 1 | I104: 0 | J104: B | K104: 19107 | L104: 800001 | N104: 2.626,24 | O104: ******************* | Q104: ******************* | R104: ******************* | Z104: 2626.24
A105: 883 | B105: 31.01.2024 | C105: 29 | D105: 05.01.2024 | H105: 1 | I105: 0 | J105: B | K105: 19107 | L105: 900000 | M105: 2.573,26 | O105: ******************* | Q105: ******************* | R105: ******************* | Z105: 2573.26
A106: 8571 | B106: 31.01.2024 | C106: 343 | D106: 30.01.2024 | H106: 1 | I106: 0 | J106: B | K106: 19107 | L106: 900000 | N106: 2.573,26 | O106: ******************* | Q106: ******************* | R106: ******************* | Z106: 2573.26
A107: 663763 | B107: 17.12.2024 | C107: 187541 | D107: 20.01.2025 | I107: 0 | J107: B | K107: 19107 | L107: 900001 | M107: 2.553,75 | O107: ******************* | Q107: ******************* | R107: ******************* | Z107: 2553.75
A108: 674182 | B108: 31.12.2024 | C108: 187794 | D108: 31.12.2024 | I108: 0 | J108: B | K108: 19107 | L108: 900001 | M108: 2.522,82 | O108: ******************* | Q108: ******************* | R108: ******************* | Z108: 2522.82
A109: 651395 | B109: 06.12.2024 | C109: 187008 | D109: 04.12.2024 | H109: 1 | I109: 0 | J109: B | K109: 19107 | L109: 2000 | M109: 2.500,00 | O109: ******************* | Q109: ******************* | R109: ******************* | Z109: 2500
A110: 2323 | B110: 31.01.2024 | C110: 82 | D110: 12.01.2024 | H110: 1 | I110: 0 | J110: B | K110: 19107 | L110: 900000 | N110: 2.381,60 | O110: ******************* | Q110: ******************* | R110: ******************* | Z110: 2381.6
A111: 66376 | B111: 29.02.2024 | C111: 26417 | D111: 07.02.2024 | H111: 1 | I111: 0 | J111: B | K111: 19107 | L111: 900000 | N111: 2.368,00 | O111: ******************* | Q111: ******************* | R111: ******************* | Z111: 2368
A112: 607037 | B112: 15.11.2024 | C112: 186060 | D112: 04.11.2024 | H112: 1 | I112: 0 | J112: B | K112: 19107 | L112: 2000 | M112: 2.263,72 | O112: ******************* | Q112: ******************* | R112: ******************* | Z112: 2263.72
A113: 7772 | B113: 31.01.2024 | C113: 312 | D113: 26.01.2024 | H113: 1 | I113: 0 | J113: B | K113: 19107 | L113: 900000 | M113: 2.175,39 | O113: ******************* | Q113: ******************* | R113: ******************* | Z113: 2175.39
A114: 73603 | B114: 29.02.2024 | C114: 26712 | D114: 27.02.2024 | H114: 1 | I114: 0 | J114: B | K114: 19107 | L114: 900000 | N114: 2.175,39 | O114: ******************* | Q114: ******************* | R114: ******************* | Z114: 2175.39
A115: 136136 | B115: 31.03.2024 | C115: 53866 | D115: 06.03.2024 | H115: 1 | I115: 0 | J115: B | K115: 19107 | L115: 900000 | M115: 2.115,00 | O115: ******************* | Q115: ******************* | R115: ******************* | Z115: 2115
A116: 380359 | B116: 26.07.2024 | C116: 156715 | D116: 03.07.2024 | H116: 1 | I116: 0 | J116: B | K116: 19107 | L116: 900000 | N116: 2.096,65 | O116: ******************* | Q116: ******************* | R116: ******************* | Z116: 2096.65
A117: 663757 | B117: 17.12.2024 | C117: 187539 | D117: 31.12.2024 | I117: 0 | J117: B | K117: 19107 | L117: 900001 | M117: 2.075,38 | O117: ******************* | Q117: ******************* | R117: ******************* | Z117: 2075.38
A118: 136582 | B118: 31.03.2024 | C118: 53886 | D118: 08.03.2024 | H118: 1 | I118: 0 | J118: B | K118: 19107 | L118: 900000 | M118: 1.869,88 | O118: ******************* | Q118: ******************* | R118: ******************* | Z118: 1869.88
A119: 144372 | B119: 31.03.2024 | C119: 54202 | D119: 02.04.2024 | H119: 1 | I119: 0 | J119: B | K119: 19107 | L119: 900000 | N119: 1.869,88 | O119: ******************* | Q119: ******************* | R119: ******************* | Z119: 1869.88
A120: 138861 | B120: 31.03.2024 | C120: 53969 | D120: 14.03.2024 | H120: 1 | I120: 0 | J120: B | K120: 19107 | L120: 900000 | N120: 1.785,00 | O120: ******************* | Q120: ******************* | R120: ******************* | Z120: 1785
A121: 144920 | B121: 31.03.2024 | C121: 54253 | D121: 29.05.2024 | H121: 1 | I121: 0 | J121: B | K121: 19107 | L121: 900000 | M121: 1.785,00 | O121: ******************* | Q121: ******************* | R121: ******************* | Z121: 1785
A122: 202083 | B122: 30.04.2024 | C122: 80083 | D122: 25.04.2024 | H122: 1 | I122: 0 | J122: B | K122: 19107 | L122: 900000 | M122: 1.785,00 | O122: ******************* | Q122: ******************* | R122: ******************* | Z122: 1785
A123: 442851 | B123: 16.08.2024 | C123: 183507 | D123: 18.07.2024 | H123: 1 | I123: 0 | J123: B | K123: 19107 | L123: 2000 | M123: 1.785,00 | O123: ******************* | Q123: ******************* | R123: ******************* | Z123: 1785
A124: 622939 | B124: 02.12.2024 | C124: 186681 | D124: 02.12.2024 | H124: 1 | I124: 0 | J124: B | K124: 19107 | L124: 800001 | N124: 1.785,00 | O124: ******************* | Q124: ******************* | R124: ******************* | Z124: 1785
A125: 663760 | B125: 17.12.2024 | C125: 187540 | D125: 31.12.2024 | I125: 0 | J125: B | K125: 19107 | L125: 900001 | M125: 1.772,91 | O125: ******************* | Q125: ******************* | R125: ******************* | Z125: 1772.91
A126: 651396 | B126: 06.12.2024 | C126: 187009 | D126: 04.12.2024 | H126: 1 | I126: 0 | J126: B | K126: 19107 | L126: 2000 | M126: 1.666,65 | O126: ******************* | Q126: ******************* | R126: ******************* | Z126: 1666.65
A127: 198502 | B127: 30.04.2024 | C127: 79939 | D127: 17.04.2024 | H127: 1 | I127: 0 | J127: B | K127: 19107 | L127: 900000 | M127: 1.662,85 | O127: ******************* | Q127: ******************* | R127: ******************* | Z127: 1662.85
A128: 263537 | B128: 31.05.2024 | C128: 105606 | D128: 24.05.2024 | H128: 1 | I128: 0 | J128: B | K128: 19107 | L128: 900000 | N128: 1.662,85 | O128: ******************* | Q128: ******************* | R128: ******************* | Z128: 1662.85
A129: 607036 | B129: 15.11.2024 | C129: 186060 | D129: 04.11.2024 | H129: 1 | I129: 0 | J129: B | K129: 19107 | L129: 2000 | M129: 1.642,82 | O129: ******************* | Q129: ******************* | R129: ******************* | Z129: 1642.82
A130: 389735 | B130: 26.07.2024 | C130: 157105 | D130: 24.07.2024 | H130: 1 | I130: 0 | J130: B | K130: 19107 | L130: 900000 | M130: 1.631,75 | O130: ******************* | Q130: ******************* | R130: ******************* | Z130: =N130+M130 -> 1631.75
A131: 68055 | B131: 29.02.2024 | C131: 26474 | D131: 13.02.2024 | H131: 1 | I131: 0 | J131: B | K131: 19107 | L131: 900000 | M131: 1.598,57 | O131: ******************* | Q131: ******************* | R131: ******************* | Z131: 1598.57
A132: 74392 | B132: 29.02.2024 | C132: 26740 | D132: 28.02.2024 | H132: 1 | I132: 0 | J132: B | K132: 19107 | L132: 900000 | N132: 1.598,57 | O132: ******************* | Q132: ******************* | R132: ******************* | Z132: 1598.57
A133: 442693 | B133: 15.08.2024 | C133: 183415 | D133: 08.08.2024 | H133: 1 | I133: 0 | J133: B | K133: 19107 | L133: 2000 | M133: 1.598,57 | O133: ******************* | Q133: ******************* | R133: ******************* | Z133: 1598.57
A134: 622923 | B134: 02.12.2024 | C134: 186674 | D134: 02.12.2024 | H134: 1 | I134: 0 | J134: B | K134: 19107 | L134: 800001 | N134: 1.598,57 | O134: ******************* | Q134: ******************* | R134: ******************* | Z134: 1598.57
A135: 607029 | B135: 15.11.2024 | C135: 186060 | D135: 04.11.2024 | H135: 1 | I135: 0 | J135: B | K135: 19107 | L135: 2000 | M135: 1.523,20 | O135: ******************* | Q135: ******************* | R135: ******************* | Z135: 1523.2
A136: 622961 | B136: 02.12.2024 | C136: 186689 | D136: 02.12.2024 | H136: 1 | I136: 0 | J136: B | K136: 19107 | L136: 800001 | N136: 1.523,20 | O136: ******************* | Q136: ******************* | R136: ******************* | Z136: 1523.2
A137: 663751 | B137: 17.12.2024 | C137: 187537 | D137: 31.12.2024 | I137: 0 | J137: B | K137: 19107 | L137: 900001 | M137: 1.451,40 | O137: ******************* | Q137: ******************* | R137: ******************* | Z137: 1451.4
A138: 665074 | B138: 18.12.2024 | C138: 187595 | D138: 31.12.2024 | I138: 0 | J138: B | K138: 19107 | L138: 900001 | M138: 1.380,73 | O138: ******************* | Q138: ******************* | R138: ******************* | Z138: 1380.73
A139: 386470 | B139: 26.07.2024 | C139: 156970 | D139: 17.07.2024 | H139: 1 | I139: 0 | J139: B | K139: 19107 | L139: 900000 | M139: 1.344,98 | O139: ******************* | Q139: ******************* | R139: ******************* | Z139: 1344.98
A140: 562839 | B140: 22.10.2024 | C140: 185515 | D140: 08.10.2024 | H140: 1 | I140: 0 | J140: B | K140: 19107 | L140: 2000 | M140: 1.344,98 | O140: ******************* | Q140: ******************* | R140: ******************* | Z140: 1344.98
A141: 622919 | B141: 02.12.2024 | C141: 186672 | D141: 02.12.2024 | H141: 1 | I141: 0 | J141: B | K141: 19107 | L141: 800001 | N141: 1.344,98 | O141: ******************* | Q141: ******************* | R141: ******************* | Z141: 1344.98
A142: 195826 | B142: 30.04.2024 | C142: 79822 | D142: 11.04.2024 | H142: 1 | I142: 0 | J142: B | K142: 19107 | L142: 900000 | M142: 1.314,64 | O142: ******************* | Q142: ******************* | R142: ******************* | Z142: 1314.64
A143: 263539 | B143: 31.05.2024 | C143: 105606 | D143: 24.05.2024 | H143: 1 | I143: 0 | J143: B | K143: 19107 | L143: 900000 | N143: 1.314,64 | O143: ******************* | Q143: ******************* | R143: ******************* | Z143: 1314.64
A144: 144579 | B144: 31.03.2024 | C144: 54234 | D144: 11.04.2024 | H144: 1 | I144: 0 | J144: B | K144: 19107 | L144: 900000 | M144: 1.269,82 | O144: ******************* | Q144: ******************* | R144: ******************* | Z144: 1269.82
A145: 263513 | B145: 31.05.2024 | C145: 105605 | D145: 24.05.2024 | H145: 1 | I145: 0 | J145: B | K145: 19107 | L145: 900000 | N145: 1.269,82 | O145: ******************* | Q145: ******************* | R145: ******************* | Z145: 1269.82
A146: 2149 | B146: 31.01.2024 | C146: 73 | D146: 12.01.2024 | H146: 1 | I146: 0 | J146: B | K146: 19107 | L146: 900000 | M146: 1.253,23 | O146: ******************* | Q146: ******************* | R146: ******************* | Z146: 1253.23
A147: 8565 | B147: 31.01.2024 | C147: 342 | D147: 30.01.2024 | H147: 1 | I147: 0 | J147: B | K147: 19107 | L147: 900000 | N147: 1.253,23 | O147: ******************* | Q147: ******************* | R147: ******************* | Z147: 1253.23
A148: 262555 | B148: 31.05.2024 | C148: 105567 | D148: 23.05.2024 | H148: 1 | I148: 0 | J148: B | K148: 19107 | L148: 900000 | M148: 1.228,16 | O148: ******************* | Q148: ******************* | R148: ******************* | Z148: 1228.16
A149: 390054 | B149: 26.07.2024 | C149: 157118 | D149: 24.07.2024 | H149: 1 | I149: 0 | J149: B | K149: 19107 | L149: 900000 | N149: 1.228,16 | O149: ******************* | Q149: ******************* | R149: ******************* | Z149: 1228.16
A150: 2142 | B150: 31.01.2024 | C150: 73 | D150: 12.01.2024 | H150: 1 | I150: 0 | J150: B | K150: 19107 | L150: 900000 | M150: 1.213,80 | O150: ******************* | Q150: ******************* | R150: ******************* | Z150: 1213.8
A151: 8555 | B151: 31.01.2024 | C151: 342 | D151: 30.01.2024 | H151: 1 | I151: 0 | J151: B | K151: 19107 | L151: 900000 | N151: 1.213,80 | O151: ******************* | Q151: ******************* | R151: ******************* | Z151: 1213.8
A152: 7763 | B152: 31.01.2024 | C152: 312 | D152: 26.01.2024 | H152: 1 | I152: 0 | J152: B | K152: 19107 | L152: 900000 | M152: 1.201,22 | O152: ******************* | Q152: ******************* | R152: ******************* | Z152: 1201.22
A153: 73567 | B153: 29.02.2024 | C153: 26710 | D153: 27.02.2024 | H153: 1 | I153: 0 | J153: B | K153: 19107 | L153: 900000 | N153: 1.201,22 | O153: ******************* | Q153: ******************* | R153: ******************* | Z153: 1201.22
A154: 199693 | B154: 30.04.2024 | C154: 79988 | D154: 19.04.2024 | H154: 1 | I154: 0 | J154: B | K154: 19107 | L154: 900000 | M154: 1.192,77 | O154: ******************* | Q154: ******************* | R154: ******************* | Z154: 1192.77
A155: 204574 | B155: 30.04.2024 | C155: 80194 | D155: 08.05.2024 | H155: 1 | I155: 0 | J155: B | K155: 19107 | L155: 900000 | M155: 1.192,77 | O155: ******************* | Q155: ******************* | R155: ******************* | Z155: 1192.77
A156: 204578 | B156: 30.04.2024 | C156: 80194 | D156: 08.05.2024 | H156: 1 | I156: 0 | J156: B | K156: 19107 | L156: 900000 | N156: 1.192,77 | O156: ******************* | Q156: ******************* | R156: ******************* | Z156: 1192.77
A157: 263515 | B157: 31.05.2024 | C157: 105605 | D157: 24.05.2024 | H157: 1 | I157: 0 | J157: B | K157: 19107 | L157: 900000 | N157: 1.192,77 | O157: ******************* | Q157: ******************* | R157: ******************* | Z157: 1192.77
A158: 255267 | B158: 31.05.2024 | C158: 105250 | D158: 03.05.2024 | H158: 1 | I158: 0 | J158: B | K158: 19107 | L158: 900000 | M158: 1.181,43 | O158: ******************* | Q158: ******************* | R158: ******************* | Z158: 1181.43
A159: 265731 | B159: 31.05.2024 | C159: 105689 | D159: 31.05.2024 | H159: 1 | I159: 0 | J159: B | K159: 19107 | L159: 900000 | N159: 1.181,43 | O159: ******************* | Q159: ******************* | R159: ******************* | Z159: 1181.43
A160: 199244 | B160: 30.04.2024 | C160: 79971 | D160: 18.04.2024 | H160: 1 | I160: 0 | J160: B | K160: 19107 | L160: 900000 | M160: 1.172,34 | O160: ******************* | Q160: ******************* | R160: ******************* | Z160: 1172.34
A161: 263527 | B161: 31.05.2024 | C161: 105606 | D161: 24.05.2024 | H161: 1 | I161: 0 | J161: B | K161: 19107 | L161: 900000 | N161: 1.172,34 | O161: ******************* | Q161: ******************* | R161: ******************* | Z161: 1172.34
A162: 607035 | B162: 15.11.2024 | C162: 186060 | D162: 04.11.2024 | H162: 1 | I162: 0 | J162: B | K162: 19107 | L162: 2000 | M162: 1.159,64 | O162: ******************* | Q162: ******************* | R162: ******************* | Z162: 1159.64
A163: 195833 | B163: 30.04.2024 | C163: 79822 | D163: 11.04.2024 | H163: 1 | I163: 0 | J163: B | K163: 19107 | L163: 900000 | M163: 1.137,85 | O163: ******************* | Q163: ******************* | R163: ******************* | Z163: 1137.85
A164: 199248 | B164: 30.04.2024 | C164: 79971 | D164: 18.04.2024 | H164: 1 | I164: 0 | J164: B | K164: 19107 | L164: 900000 | N164: 1.137,85 | O164: ******************* | Q164: ******************* | R164: ******************* | Z164: 1137.85
A165: 654760 | B165: 09.12.2024 | C165: 187172 | D165: 18.11.2024 | H165: 1 | I165: 0 | J165: B | K165: 19107 | L165: 2000 | M165: 1.124,42 | O165: ******************* | Q165: ******************* | R165: ******************* | Z165: 1124.42
A166: 562833 | B166: 22.10.2024 | C166: 185514 | D166: 14.10.2024 | H166: 1 | I166: 0 | J166: B | K166: 19107 | L166: 2000 | M166: 1.103,01 | O166: ******************* | Q166: ******************* | R166: ******************* | Z166: 1103.01
A167: 613174 | B167: 21.11.2024 | C167: 186230 | D167: 21.11.2024 | H167: 1 | I167: 0 | J167: B | K167: 19107 | L167: 800001 | N167: 1.103,01 | O167: ******************* | Q167: ******************* | R167: ******************* | Z167: 1103.01
A168: 72470 | B168: 29.02.2024 | C168: 26664 | D168: 26.02.2024 | H168: 1 | I168: 0 | J168: B | K168: 19107 | L168: 900000 | M168: 1.067,08 | O168: ******************* | Q168: ******************* | R168: ******************* | Z168: 1067.08
A169: 74402 | B169: 29.02.2024 | C169: 26740 | D169: 28.02.2024 | H169: 1 | I169: 0 | J169: B | K169: 19107 | L169: 900000 | N169: 1.067,08 | O169: ******************* | Q169: ******************* | R169: ******************* | Z169: 1067.08
A170: 195838 | B170: 30.04.2024 | C170: 79822 | D170: 11.04.2024 | H170: 1 | I170: 0 | J170: B | K170: 19107 | L170: 900000 | M170: 1.067,08 | O170: ******************* | Q170: ******************* | R170: ******************* | Z170: 1067.08
A171: 263509 | B171: 31.05.2024 | C171: 105605 | D171: 24.05.2024 | H171: 1 | I171: 0 | J171: B | K171: 19107 | L171: 900000 | N171: 1.067,08 | O171: ******************* | Q171: ******************* | R171: ******************* | Z171: 1067.08
A172: 533142 | B172: 07.10.2024 | C172: 184988 | D172: 01.10.2024 | H172: 1 | I172: 0 | J172: B | K172: 19107 | L172: 2000 | M172: 1.067,08 | O172: ******************* | Q172: ******************* | R172: ******************* | Z172: 1067.08
A173: 600234 | B173: 08.11.2024 | C173: 185934 | D173: 01.07.2024 | H173: 1 | I173: 0 | J173: B | K173: 19107 | L173: 2000 | M173: 1.067,08 | O173: ******************* | Q173: ******************* | R173: ******************* | Z173: 1067.08
A174: 622937 | B174: 02.12.2024 | C174: 186680 | D174: 02.12.2024 | H174: 1 | I174: 0 | J174: B | K174: 19107 | L174: 800001 | N174: 1.067,08 | O174: ******************* | Q174: ******************* | R174: ******************* | Z174: 1067.08
A175: 449406 | B175: 23.08.2024 | C175: 183674 | D175: 31.07.2024 | H175: 1 | I175: 0 | J175: B | K175: 19107 | L175: 62100 | M175: 1.054,49 | O175: ******************* | Q175: ******************* | R175: ******************* | Z175: 1054.49
A176: 622935 | B176: 02.12.2024 | C176: 186679 | D176: 02.12.2024 | H176: 1 | I176: 0 | J176: B | K176: 19107 | L176: 800001 | N176: 1.054,49 | O176: ******************* | Q176: ******************* | R176: ******************* | Z176: 1054.49
A177: 317929 | B177: 30.06.2024 | C177: 130981 | D177: 11.06.2024 | H177: 1 | I177: 0 | J177: B | K177: 19107 | L177: 900000 | M177: 1.039,75 | O177: ******************* | Q177: ******************* | R177: ******************* | Z177: 1039.75
A178: 622798 | B178: 29.11.2024 | C178: 186628 | D178: 22.11.2024 | H178: 1 | I178: 0 | J178: B | K178: 19107 | L178: 2000 | M178: 1.001,39 | O178: ******************* | Q178: ******************* | R178: ******************* | Z178: 1001.39
A179: 454801 | B179: 29.08.2024 | C179: 183787 | D179: 26.08.2024 | H179: 1 | I179: 0 | J179: B | K179: 19107 | L179: 2000 | M179: 995,83 | O179: ******************* | Q179: ******************* | R179: ******************* | Z179: 995.83
A180: 613172 | B180: 21.11.2024 | C180: 186229 | D180: 21.11.2024 | H180: 1 | I180: 0 | J180: B | K180: 19107 | L180: 800001 | N180: 995,83 | O180: ******************* | Q180: ******************* | R180: ******************* | Z180: 995.83
A181: 68937 | B181: 29.02.2024 | C181: 26511 | D181: 15.02.2024 | H181: 1 | I181: 0 | J181: B | K181: 19107 | L181: 900000 | M181: 994,05 | O181: ******************* | Q181: ******************* | R181: ******************* | Z181: 994.05
A182: 72474 | B182: 29.02.2024 | C182: 26664 | D182: 26.02.2024 | H182: 1 | I182: 0 | J182: B | K182: 19107 | L182: 900000 | N182: 994,05 | O182: ******************* | Q182: ******************* | R182: ******************* | Z182: 994.05
A183: 562618 | B183: 21.10.2024 | C183: 185479 | D183: 05.10.2024 | H183: 1 | I183: 0 | J183: B | K183: 19107 | L183: 2000 | M183: 973,07 | O183: ******************* | Q183: ******************* | R183: ******************* | Z183: 973.07
A184: 622967 | B184: 02.12.2024 | C184: 186692 | D184: 02.12.2024 | H184: 1 | I184: 0 | J184: B | K184: 19107 | L184: 800001 | N184: 973,07 | O184: ******************* | Q184: ******************* | R184: ******************* | Z184: 973.07
A185: 9353 | B185: 31.01.2024 | C185: 374 | D185: 01.02.2024 | H185: 1 | I185: 0 | J185: B | K185: 19107 | L185: 900000 | M185: 959,72 | O185: ******************* | Q185: ******************* | R185: ******************* | Z185: 959.72
A186: 73595 | B186: 29.02.2024 | C186: 26712 | D186: 27.02.2024 | H186: 1 | I186: 0 | J186: B | K186: 19107 | L186: 900000 | N186: 959,72 | O186: ******************* | Q186: ******************* | R186: ******************* | Z186: 959.72
A187: 71109 | B187: 29.02.2024 | C187: 26603 | D187: 21.02.2024 | H187: 1 | I187: 0 | J187: B | K187: 19107 | L187: 900000 | M187: 956,62 | O187: ******************* | Q187: ******************* | R187: ******************* | Z187: 956.62
A188: 137455 | B188: 31.03.2024 | C188: 53924 | D188: 12.03.2024 | H188: 1 | I188: 0 | J188: B | K188: 19107 | L188: 900000 | N188: 956,62 | O188: ******************* | Q188: ******************* | R188: ******************* | Z188: 956.62
A189: 3737 | B189: 31.01.2024 | C189: 141 | D189: 17.01.2024 | H189: 1 | I189: 0 | J189: B | K189: 19107 | L189: 900000 | M189: 950,00 | O189: ******************* | Q189: ******************* | R189: ******************* | Z189: 950
A190: 8547 | B190: 31.01.2024 | C190: 342 | D190: 30.01.2024 | H190: 1 | I190: 0 | J190: B | K190: 19107 | L190: 900000 | N190: 950,00 | O190: ******************* | Q190: ******************* | R190: ******************* | Z190: 950
A191: 204417 | B191: 30.04.2024 | C191: 80182 | D191: 02.05.2024 | H191: 1 | I191: 0 | J191: B | K191: 19107 | L191: 900000 | N191: 949,18 | O191: ******************* | Q191: ******************* | R191: ******************* | Z191: 949.18
A192: 8533 | B192: 31.01.2024 | C192: 341 | D192: 30.01.2024 | H192: 1 | I192: 0 | J192: B | K192: 19107 | L192: 900000 | N192: 916,78 | O192: ******************* | Q192: ******************* | R192: ******************* | Z192: 916.78
A193: 454806 | B193: 29.08.2024 | C193: 183788 | D193: 19.08.2024 | H193: 1 | I193: 0 | J193: B | K193: 19107 | L193: 2000 | M193: 903,97 | O193: ******************* | Q193: ******************* | R193: ******************* | Z193: 903.97
A194: 613170 | B194: 21.11.2024 | C194: 186228 | D194: 21.11.2024 | H194: 1 | I194: 0 | J194: B | K194: 19107 | L194: 800001 | N194: 903,97 | O194: ******************* | Q194: ******************* | R194: ******************* | Z194: =N194+M194 -> 903.97
A195: 622795 | B195: 29.11.2024 | C195: 186627 | D195: 20.11.2024 | H195: 1 | I195: 0 | J195: B | K195: 19107 | L195: 2000 | M195: 889,32 | O195: ******************* | Q195: ******************* | R195: ******************* | Z195: 889.32
A196: 67509 | B196: 29.02.2024 | C196: 26456 | D196: 12.02.2024 | H196: 1 | I196: 0 | J196: B | K196: 19107 | L196: 900000 | M196: 883,67 | O196: ******************* | Q196: ******************* | R196: ******************* | Z196: 883.67
A197: 74382 | B197: 29.02.2024 | C197: 26739 | D197: 28.02.2024 | H197: 1 | I197: 0 | J197: B | K197: 19107 | L197: 900000 | N197: 883,67 | O197: ******************* | Q197: ******************* | R197: ******************* | Z197: 883.67
A198: 143396 | B198: 31.03.2024 | C198: 54158 | D198: 28.03.2024 | H198: 1 | I198: 0 | J198: B | K198: 19107 | L198: 900000 | M198: 858,25 | O198: ******************* | Q198: ******************* | R198: ******************* | Z198: 858.25
A199: 204395 | B199: 30.04.2024 | C199: 80180 | D199: 02.05.2024 | H199: 1 | I199: 0 | J199: B | K199: 19107 | L199: 900000 | N199: 858,25 | O199: ******************* | Q199: ******************* | R199: ******************* | Z199: 858.25
A200: 666614 | B200: 20.12.2024 | C200: 187641 | D200: 13.12.2024 | H200: 1 | I200: 0 | J200: B | K200: 19107 | L200: 2000 | M200: 845,40 | O200: ******************* | Q200: ******************* | R200: ******************* | Z200: 845.4
... 493 more rows

Sheet Beispiel
A1: B-Nr. | B1: B-Datum | C1: Beleg | D1: vom | E1: Lgr | F1: KS | G1: KT | H1: HT | I1: St. | J1: St.-Typ | K1: Sachkonto | L1: Geldkonto | M1: Betrag Soll € | N1: Betrag Haben € | O1: Differenz | P1: Aktenzeichen | Q1: Btr-Gruppe | R1: Buchungstext | S1: Rechnungsnummer | T1: Mitgliedsnummer
A2: 1445 | B2: 31.01.2024 | C2: 49 | D2: 09.01.2024 | H2: 1 | I2: 0 | J2: B | K2: 19107 | L2: 900000 | M2: 27.128,43 | O2: Soll: 27.128,43 Haben: 27.128,43 Diff: 0,00 | P2: ******************* | R2: ******************* | S2: ******************* | AA2: =N2+M2 -> 27128.43
A3: 8589 | B3: 31.01.2024 | C3: 344 | D3: 30.01.2024 | H3: 1 | I3: 0 | J3: B | K3: 19107 | L3: 900000 | N3: 27.128,43 | P3: ******************* | R3: ******************* | S3: ******************* | AA3: 27128.43
A4: 72428 | B4: 29.02.2024 | C4: 26662 | D4: 23.02.2024 | H4: 1 | I4: 0 | J4: B | K4: 19107 | L4: 900000 | N4: 25.694,16 | O4: Soll: 0,00 Haben: 25.694,16 Diff: 25.694,16 | P4: ******************* | R4: ******************* | S4: ******************* | AA4: 25694.16
A5: 319713 | B5: 30.06.2024 | C5: 131053 | D5: 14.06.2024 | H5: 1 | I5: 0 | J5: B | K5: 19107 | L5: 900000 | N5: 24.116,34 | O5: Soll: 0,00 Haben: 24.116,34 Diff: 24.116,34 | P5: ******************* | R5: ******************* | S5: ******************* | AA5: 24116.34
A6: 8601 | B6: 31.01.2024 | C6: 344 | D6: 30.01.2024 | H6: 1 | I6: 0 | J6: B | K6: 19107 | L6: 900000 | N6: 24.008,34 | O6: Soll: 0,00 Haben: 24.008,34 Diff: 24.008,34 | P6: ******************* | R6: ******************* | S6: ******************* | AA6: 24008.34
A7: 2109 | B7: 31.01.2024 | C7: 72 | D7: 12.01.2024 | H7: 1 | I7: 0 | J7: B | K7: 19107 | L7: 900000 | M7: 23.221,94 | O7: Soll: 23.221,94 Haben: 23.221,94 Diff: 0,00 | P7: ******************* | R7: ******************* | S7: ******************* | AA7: 23221.94
A8: 8591 | B8: 31.01.2024 | C8: 344 | D8: 30.01.2024 | H8: 1 | I8: 0 | J8: B | K8: 19107 | L8: 900000 | N8: 23.221,94 | P8: ******************* | R8: ******************* | S8: ******************* | AA8: 23221.94
A9: 607045 | B9: 15.11.2024 | C9: 186060 | D9: 09.10.2024 | H9: 1 | I9: 0 | J9: B | K9: 19107 | L9: 2000 | M9: 22.440,00 | O9: Soll: 22.440,00 Haben: 0,00 Diff: 22.440,00 | P9: ******************* | R9: ******************* | S9: ******************* | AA9: 22440
A10: 67206 | B10: 29.02.2024 | C10: 26445 | D10: 09.02.2024 | H10: 1 | I10: 0 | J10: B | K10: 19107 | L10: 900000 | M10: 18.412,81 | O10: Soll: 18.412,81 Haben: 18.412,81 Diff: 0,00 | P10: ******************* | R10: ******************* | S10: ******************* | AA10: 18412.81
A11: 72432 | B11: 29.02.2024 | C11: 26662 | D11: 23.02.2024 | H11: 1 | I11: 0 | J11: B | K11: 19107 | L11: 900000 | N11: 18.412,81 | P11: ******************* | R11: ******************* | S11: ******************* | AA11: 18412.81
A12: 504033 | B12: 09.09.2024 | C12: 184156 | D12: 06.08.2024 | H12: 1 | I12: 0 | J12: B | K12: 19107 | L12: 800001 | N12: 18.087,26 | O12: Soll: 18.087,26 Haben: 18.087,26 Diff: 0,00 | P12: ******************* | R12: ******************* | S12: ******************* | AA12: 18087.26
A13: 504114 | B13: 10.09.2024 | C13: 184225 | D13: 06.08.2024 | H13: 1 | I13: 0 | J13: B | K13: 19107 | L13: 2000 | M13: 18.087,26 | P13: ******************* | R13: ******************* | S13: ******************* | AA13: 18087.26
A14: 520137 | B14: 26.09.2024 | C14: 184613 | D14: 22.07.2024 | H14: 1 | I14: 0 | J14: B | K14: 19107 | L14: 2000 | M14: 14.329,17 | O14: Soll: 14.329,17 Haben: 14.329,17 Diff: 0,00 | P14: ******************* | R14: ******************* | S14: ******************* | AA14: 14329.17
A15: 622941 | B15: 02.12.2024 | C15: 186682 | D15: 02.12.2024 | H15: 1 | I15: 0 | J15: B | K15: 19107 | L15: 800001 | N15: 14.329,17 | P15: ******************* | R15: ******************* | S15: ******************* | AA15: 14329.17
A16: 72430 | B16: 29.02.2024 | C16: 26662 | D16: 23.02.2024 | H16: 1 | I16: 0 | J16: B | K16: 19107 | L16: 900000 | N16: 13.837,52 | O16: Soll: 0,00 Haben: 13.837,52 Diff: 13.857,52 | P16: ******************* | R16: ******************* | S16: ******************* | AA16: 13837.52
A17: 2376 | B17: 31.01.2024 | C17: 82 | D17: 15.01.2024 | H17: 1 | I17: 0 | J17: B | K17: 19107 | L17: 900000 | M17: 13.060,95 | O17: Soll: 13.060,95 Haben: 13.060,95 Diff: 0,00 | P17: ******************* | R17: ******************* | S17: ******************* | AA17: 13060.95
A18: 8593 | B18: 31.01.2024 | C18: 344 | D18: 30.01.2024 | H18: 1 | I18: 0 | J18: B | K18: 19107 | L18: 900000 | N18: 13.060,95 | P18: ******************* | R18: ******************* | S18: ******************* | AA18: 13060.95
A19: 136979 | B19: 31.03.2024 | C19: 53903 | D19: 11.03.2024 | H19: 1 | I19: 0 | J19: B | K19: 19107 | L19: 900000 | M19: 12.458,85 | P19: ******************* | R19: ******************* | S19: ******************* | AA19: 12458.85
A20: 144346 | B20: 31.03.2024 | C20: 54201 | D20: 02.04.2024 | H20: 1 | I20: 0 | J20: B | K20: 19107 | L20: 900000 | N20: 12.458,85 | P20: ******************* | R20: ******************* | S20: ******************* | AA20: 12458.85
A21: 1450 | B21: 31.01.2024 | C21: 49 | D21: 09.01.2024 | H21: 1 | I21: 0 | J21: B | K21: 19107 | L21: 900000 | M21: 11.978,02 | P21: ******************* | R21: ******************* | S21: ******************* | AA21: 11978.02
A22: 8549 | B22: 31.01.2024 | C22: 342 | D22: 30.01.2024 | H22: 1 | I22: 0 | J22: B | K22: 19107 | L22: 900000 | N22: 11.978,02 | P22: ******************* | R22: ******************* | S22: ******************* | AA22: 11978.02
A23: 442270 | B23: 06.08.2024 | C23: 183198 | D23: 06.08.2024 | H23: 1 | I23: 0 | J23: B | K23: 19107 | L23: 800001 | N23: 11.446,43 | P23: ******************* | R23: ******************* | S23: ******************* | AA23: 11446.43
A24: 660322 | B24: 13.12.2024 | C24: 187426 | D24: 03.12.2024 | H24: 1 | I24: 0 | J24: B | K24: 19107 | L24: 2000 | M24: 10.600,52 | P24: ******************* | R24: ******************* | S24: ******************* | AA24: 10600.52
A25: 443772 | B25: 20.08.2024 | C25: 183561 | D25: 12.08.2024 | H25: 1 | I25: 0 | J25: B | K25: 19107 | L25: 2000 | M25: 8.796,00 | P25: ******************* | R25: ******************* | S25: ******************* | AA25: 8796
A26: 451177 | B26: 27.08.2024 | C26: 183738 | D26: 12.08.2024 | H26: 1 | I26: 0 | J26: B | K26: 19107 | L26: 2000 | M26: 8.796,00 | P26: ******************* | R26: ******************* | S26: ******************* | AA26: 8796
A27: 140204 | B27: 31.03.2024 | C27: 54027 | D27: 18.03.2024 | H27: 1 | I27: 0 | J27: B | K27: 19107 | L27: 900000 | N27: 7.474,92 | P27: ******************* | R27: ******************* | S27: ******************* | AA27: 7474.92
A28: 256552 | B28: 31.05.2024 | C28: 105305 | D28: 07.05.2024 | H28: 1 | I28: 0 | J28: B | K28: 19107 | L28: 900000 | M28: 7.387,22 | P28: ******************* | R28: ******************* | S28: ******************* | AA28: 7387.22
A29: 319114 | B29: 30.06.2024 | C29: 131028 | D29: 13.06.2024 | H29: 1 | I29: 0 | J29: B | K29: 19107 | L29: 900000 | N29: 7.387,22 | P29: ******************* | R29: ******************* | S29: ******************* | AA29: 7387.22
A30: 596754 | B30: 05.11.2024 | C30: 185850 | D30: 25.10.2024 | H30: 1 | I30: 0 | J30: B | K30: 19107 | L30: 2000 | M30: 6.833,51 | P30: ******************* | R30: ******************* | S30: ******************* | AA30: 6833.51
A31: 1435 | B31: 31.01.2024 | C31: 49 | D31: 09.01.2024 | H31: 1 | I31: 0 | J31: B | K31: 19107 | L31: 900000 | M31: 6.827,39 | P31: ******************* | R31: ******************* | S31: ******************* | AA31: 6827.39
A32: 8557 | B32: 31.01.2024 | C32: 342 | D32: 30.01.2024 | H32: 1 | I32: 0 | J32: B | K32: 19107 | L32: 900000 | N32: 6.827,39 | P32: ******************* | R32: ******************* | S32: ******************* | AA32: 6827.39
A33: 144350 | B33: 31.03.2024 | C33: 54201 | D33: 02.04.2024 | H33: 1 | I33: 0 | J33: B | K33: 19107 | L33: 900000 | N33: 6.823,28 | P33: ******************* | R33: ******************* | S33: ******************* | AA33: 6823.28
A34: 654701 | B34: 09.12.2024 | C34: 187124 | D34: 02.12.2024 | H34: 1 | I34: 0 | J34: B | K34: 19107 | L34: 2000 | M34: 6.766,34 | P34: ******************* | R34: ******************* | S34: ******************* | AA34: 6766.34
A35: 7782 | B35: 31.01.2024 | C35: 312 | D35: 26.01.2024 | H35: 1 | I35: 0 | J35: B | K35: 19107 | L35: 900000 | M35: 6.467,10 | P35: ******************* | R35: ******************* | S35: ******************* | AA35: 6467.1
A36: 68438 | B36: 29.02.2024 | C36: 26494 | D36: 13.02.2024 | H36: 1 | I36: 0 | J36: B | K36: 19107 | L36: 900000 | N36: 6.467,10 | P36: ******************* | R36: ******************* | S36: ******************* | AA36: 6467.1
A37: 7777 | B37: 31.01.2024 | C37: 312 | D37: 26.01.2024 | H37: 1 | I37: 0 | J37: B | K37: 19107 | L37: 900000 | M37: 6.069,00 | P37: ******************* | R37: ******************* | S37: ******************* | AA37: 6069
A38: 68440 | B38: 29.02.2024 | C38: 26494 | D38: 13.02.2024 | H38: 1 | I38: 0 | J38: B | K38: 19107 | L38: 900000 | N38: 6.069,00 | P38: ******************* | R38: ******************* | S38: ******************* | AA38: 6069
A39: 605510 | B39: 14.11.2024 | C39: 186034 | D39: 28.10.2024 | H39: 1 | I39: 0 | J39: B | K39: 19107 | L39: 2000 | M39: 6.028,93 | P39: ******************* | R39: ******************* | S39: ******************* | AA39: 6028.93
A40: 567756 | B40: 25.10.2024 | C40: 185613 | D40: 17.10.2024 | H40: 1 | I40: 0 | J40: B | K40: 19107 | L40: 2000 | M40: 5.898,94 | P40: ******************* | R40: ******************* | S40: ******************* | AA40: 5898.94
A41: 898 | B41: 31.01.2024 | C41: 29 | D41: 05.01.2024 | H41: 1 | I41: 0 | J41: B | K41: 19107 | L41: 900000 | M41: 5.753,42 | P41: ******************* | R41: ******************* | S41: ******************* | AA41: 5753.42
A42: 8575 | B42: 31.01.2024 | C42: 343 | D42: 30.01.2024 | H42: 1 | I42: 0 | J42: B | K42: 19107 | L42: 900000 | N42: 5.753,42 | P42: ******************* | R42: ******************* | S42: ******************* | AA42: 5753.42
A43: 263687 | B43: 31.05.2024 | C43: 105610 | D43: 27.05.2024 | H43: 1 | I43: 0 | J43: B | K43: 19107 | L43: 900000 | M43: 5.576,16 | P43: ******************* | R43: ******************* | S43: ******************* | AA43: 5576.16
A44: 319146 | B44: 30.06.2024 | C44: 131030 | D44: 13.06.2024 | H44: 1 | I44: 0 | J44: B | K44: 19107 | L44: 900000 | N44: 5.576,16 | P44: ******************* | R44: ******************* | S44: ******************* | AA44: 5576.16
A45: 72123 | B45: 29.02.2024 | C45: 26647 | D45: 23.02.2024 | H45: 1 | I45: 0 | J45: B | K45: 19107 | L45: 900000 | M45: 5.545,45 | P45: ******************* | R45: ******************* | S45: ******************* | AA45: 5545.45
A46: 137451 | B46: 31.03.2024 | C46: 53924 | D46: 12.03.2024 | H46: 1 | I46: 0 | J46: B | K46: 19107 | L46: 900000 | N46: 5.545,45 | P46: ******************* | R46: ******************* | S46: ******************* | AA46: 5545.45
A47: 138587 | B47: 31.03.2024 | C47: 53957 | D47: 14.03.2024 | H47: 1 | I47: 0 | J47: B | K47: 19107 | L47: 900000 | M47: 5.381,18 | P47: ******************* | R47: ******************* | S47: ******************* | AA47: 5381.18
A48: 144583 | B48: 31.03.2024 | C48: 54234 | D48: 11.04.2024 | H48: 1 | I48: 0 | J48: B | K48: 19107 | L48: 900000 | N48: 5.381,18 | P48: ******************* | R48: ******************* | S48: ******************* | AA48: 5381.18
A49: 500267 | B49: 04.09.2024 | C49: 184042 | D49: 29.07.2024 | H49: 1 | I49: 0 | J49: B | K49: 19107 | L49: 2000 | M49: 5.147,22 | P49: ******************* | R49: ******************* | S49: ******************* | AA49: 5147.22
A50: 622975 | B50: 02.12.2024 | C50: 186694 | D50: 02.12.2024 | H50: 1 | I50: 0 | J50: B | K50: 19107 | L50: 800001 | N50: 5.147,22 | P50: ******************* | R50: ******************* | S50: ******************* | AA50: 5147.22
A51: 141222 | B51: 31.03.2024 | C51: 54068 | D51: 22.03.2024 | H51: 1 | I51: 0 | J51: B | K51: 19107 | L51: 900000 | M51: 4.906,79 | P51: ******************* | R51: ******************* | S51: ******************* | AA51: 4906.79
A52: 204405 | B52: 30.04.2024 | C52: 80181 | D52: 02.05.2024 | H52: 1 | I52: 0 | J52: B | K52: 19107 | L52: 900000 | N52: 4.906,79 | P52: ******************* | R52: ******************* | S52: ******************* | AA52: 4906.79
A53: 613125 | B53: 21.11.2024 | C53: 186207 | D53: 31.10.2024 | H53: 1 | I53: 0 | J53: B | K53: 19107 | L53: 62100 | M53: 4.468,43 | P53: ******************* | R53: ******************* | S53: ******************* | AA53: 4468.43
A54: 73569 | B54: 29.02.2024 | C54: 26710 | D54: 27.02.2024 | H54: 1 | I54: 0 | J54: B | K54: 19107 | L54: 900000 | N54: 4.103,24 | P54: ******************* | R54: ******************* | S54: ******************* | AA54: 4103.24
A55: 65626 | B55: 29.02.2024 | C55: 26380 | D55: 06.02.2024 | H55: 1 | I55: 0 | J55: B | K55: 19107 | L55: 900000 | M55: 4.063,36 | P55: ******************* | R55: ******************* | S55: ******************* | AA55: 4063.36
A56: 73605 | B56: 29.02.2024 | C56: 26712 | D56: 27.02.2024 | H56: 1 | I56: 0 | J56: B | K56: 19107 | L56: 900000 | N56: 4.063,36 | P56: ******************* | R56: ******************* | S56: ******************* | AA56: 4063.36
A57: 136562 | B57: 31.03.2024 | C57: 53885 | D57: 08.03.2024 | H57: 1 | I57: 0 | J57: B | K57: 19107 | L57: 900000 | M57: 4.063,36 | P57: ******************* | R57: ******************* | S57: ******************* | AA57: 4063.36
A58: 142576 | B58: 31.03.2024 | C58: 54125 | D58: 27.03.2024 | H58: 1 | I58: 0 | J58: B | K58: 19107 | L58: 900000 | M58: 4.063,36 | P58: ******************* | R58: ******************* | S58: ******************* | AA58: 4063.36
A59: 144378 | B59: 31.03.2024 | C59: 54202 | D59: 02.04.2024 | H59: 1 | I59: 0 | J59: B | K59: 19107 | L59: 900000 | N59: 4.063,36 | P59: ******************* | R59: ******************* | S59: ******************* | AA59: 4063.36
A60: 204391 | B60: 30.04.2024 | C60: 80180 | D60: 02.05.2024 | H60: 1 | I60: 0 | J60: B | K60: 19107 | L60: 900000 | N60: 4.063,36 | P60: ******************* | R60: ******************* | S60: ******************* | AA60: 4063.36
A61: 264926 | B61: 31.05.2024 | C61: 105664 | D61: 30.05.2024 | H61: 1 | I61: 0 | J61: B | K61: 19107 | L61: 900000 | M61: 4.063,36 | P61: ******************* | R61: ******************* | S61: ******************* | AA61: 4063.36
A62: 265054 | B62: 31.05.2024 | C62: 105669 | D62: 30.05.2024 | H62: 1 | I62: 0 | J62: B | K62: 19107 | L62: 900000 | M62: 4.063,36 | P62: ******************* | R62: ******************* | S62: ******************* | AA62: 4063.36
A63: 381646 | B63: 26.07.2024 | C63: 156776 | D63: 05.07.2024 | H63: 1 | I63: 0 | J63: B | K63: 19107 | L63: 900000 | N63: 4.063,36 | P63: ******************* | R63: ******************* | S63: ******************* | AA63: 4063.36
A64: 381666 | B64: 26.07.2024 | C64: 156777 | D64: 05.07.2024 | H64: 1 | I64: 0 | J64: B | K64: 19107 | L64: 900000 | N64: 4.063,36 | P64: ******************* | R64: ******************* | S64: ******************* | AA64: 4063.36
A65: 384102 | B65: 26.07.2024 | C65: 156869 | D65: 12.07.2024 | H65: 1 | I65: 0 | J65: B | K65: 19107 | L65: 900000 | M65: 4.063,36 | P65: ******************* | R65: ******************* | S65: ******************* | AA65: 4063.36
A66: 520133 | B66: 26.09.2024 | C66: 184612 | D66: 20.08.2024 | H66: 1 | I66: 0 | J66: B | K66: 19107 | L66: 2000 | M66: 4.041,51 | P66: ******************* | R66: ******************* | S66: ******************* | AA66: =N66+M66 -> 4041.51
A67: 533145 | B67: 07.10.2024 | C67: 184989 | D67: 20.09.2024 | H67: 1 | I67: 0 | J67: B | K67: 19107 | L67: 2000 | M67: 4.041,51 | P67: ******************* | R67: ******************* | S67: ******************* | AA67: 4041.51
A68: 607041 | B68: 15.11.2024 | C68: 186060 | D68: 21.10.2024 | H68: 1 | I68: 0 | J68: B | K68: 19107 | L68: 2000 | M68: 4.041,51 | P68: ******************* | R68: ******************* | S68: ******************* | AA68: 4041.51
A69: 622913 | B69: 02.12.2024 | C69: 186671 | D69: 02.12.2024 | H69: 1 | I69: 0 | J69: B | K69: 19107 | L69: 800001 | N69: 4.041,51 | P69: ******************* | R69: ******************* | S69: ******************* | AA69: 4041.51
A70: 622915 | B70: 02.12.2024 | C70: 186671 | D70: 02.12.2024 | H70: 1 | I70: 0 | J70: B | K70: 19107 | L70: 800001 | N70: 4.041,51 | P70: ******************* | R70: ******************* | S70: ******************* | AA70: 4041.51
A71: 622917 | B71: 02.12.2024 | C71: 186671 | D71: 02.12.2024 | H71: 1 | I71: 0 | J71: B | K71: 19107 | L71: 800001 | N71: 4.041,51 | P71: ******************* | R71: ******************* | S71: ******************* | AA71: 4041.51
A72: 658874 | B72: 12.12.2024 | C72: 187308 | D72: 20.11.2024 | H72: 1 | I72: 0 | J72: B | K72: 19107 | L72: 2000 | M72: 4.041,51 | P72: ******************* | R72: ******************* | S72: ******************* | AA72: 4041.51
A73: 264101 | B73: 31.05.2024 | C73: 105627 | D73: 27.05.2024 | H73: 1 | I73: 0 | J73: B | K73: 19107 | L73: 900000 | N73: 4.033,74 | P73: ******************* | R73: ******************* | S73: ******************* | AA73: 4033.74
A74: 259226 | B74: 31.05.2024 | C74: 105423 | D74: 15.05.2024 | H74: 1 | I74: 0 | J74: B | K74: 19107 | L74: 900000 | M74: 3.955,47 | P74: ******************* | R74: ******************* | S74: ******************* | AA74: 3955.47
A75: 383906 | B75: 26.07.2024 | C75: 156863 | D75: 12.07.2024 | H75: 1 | I75: 0 | J75: B | K75: 19107 | L75: 900000 | N75: 3.955,47 | P75: ******************* | R75: ******************* | S75: ******************* | AA75: 3955.47
A76: 318747 | B76: 30.06.2024 | C76: 131011 | D76: 13.06.2024 | H76: 1 | I76: 0 | J76: B | K76: 19107 | L76: 900000 | M76: 3.794,03 | P76: ******************* | R76: ******************* | S76: ******************* | AA76: 3794.03
A77: 390062 | B77: 26.07.2024 | C77: 157119 | D77: 24.07.2024 | H77: 1 | I77: 0 | J77: B | K77: 19107 | L77: 900000 | N77: 3.794,03 | P77: ******************* | R77: ******************* | S77: ******************* | AA77: 3794.03
A78: 506 | B78: 31.01.2024 | C78: 14 | D78: 04.01.2024 | H78: 1 | I78: 0 | J78: B | K78: 19107 | L78: 900000 | M78: 3.726,28 | P78: ******************* | R78: ******************* | S78: ******************* | AA78: 3726.28
A79: 2382 | B79: 31.01.2024 | C79: 83 | D79: 15.01.2024 | H79: 1 | I79: 0 | J79: B | K79: 19107 | L79: 900000 | N79: 3.726,28 | P79: ******************* | R79: ******************* | S79: ******************* | AA79: 3726.28
A80: 137465 | B80: 31.03.2024 | C80: 53925 | D80: 12.03.2024 | H80: 1 | I80: 0 | J80: B | K80: 19107 | L80: 900000 | N80: 3.726,28 | P80: ******************* | R80: ******************* | S80: ******************* | AA80: 3726.28
A81: 319711 | B81: 30.06.2024 | C81: 131053 | D81: 14.06.2024 | H81: 1 | I81: 0 | J81: B | K81: 19107 | L81: 900000 | N81: 3.632,22 | P81: ******************* | R81: ******************* | S81: ******************* | AA81: 3632.22
A82: 135897 | B82: 31.03.2024 | C82: 53855 | D82: 06.03.2024 | H82: 1 | I82: 0 | J82: B | K82: 19107 | L82: 900000 | M82: 3.475,36 | P82: ******************* | R82: ******************* | S82: ******************* | AA82: 3475.36
A83: 144366 | B83: 31.03.2024 | C83: 54202 | D83: 02.04.2024 | H83: 1 | I83: 0 | J83: B | K83: 19107 | L83: 900000 | N83: 3.475,36 | P83: ******************* | R83: ******************* | S83: ******************* | AA83: 3475.36
A84: 265950 | B84: 31.05.2024 | C84: 105696 | D84: 03.06.2024 | H84: 1 | I84: 0 | J84: B | K84: 19107 | L84: 900000 | M84: 3.475,36 | P84: ******************* | R84: ******************* | S84: ******************* | AA84: 3475.36
A85: 381658 | B85: 26.07.2024 | C85: 156777 | D85: 05.07.2024 | H85: 1 | I85: 0 | J85: B | K85: 19107 | L85: 900000 | N85: 3.475,36 | P85: ******************* | R85: ******************* | S85: ******************* | AA85: 3475.36
A86: 621652 | B86: 28.11.2024 | C86: 186544 | D86: 20.11.2024 | H86: 1 | I86: 0 | J86: B | K86: 19107 | L86: 2000 | M86: 3.384,48 | P86: ******************* | R86: ******************* | S86: ******************* | AA86: 3384.48
A87: 66535 | B87: 29.02.2024 | C87: 26422 | D87: 08.02.2024 | H87: 1 | I87: 0 | J87: B | K87: 19107 | L87: 900000 | M87: 3.150,83 | P87: ******************* | R87: ******************* | S87: ******************* | AA87: 3150.83
A88: 520130 | B88: 26.09.2024 | C88: 184611 | D88: 23.09.2024 | H88: 1 | I88: 0 | J88: B | K88: 19107 | L88: 2000 | M88: 3.046,40 | P88: ******************* | R88: ******************* | S88: ******************* | AA88: 3046.4
A89: 622895 | B89: 02.12.2024 | C89: 186663 | D89: 02.12.2024 | H89: 1 | I89: 0 | J89: B | K89: 19107 | L89: 800001 | N89: 3.046,40 | P89: ******************* | R89: ******************* | S89: ******************* | AA89: 3046.4
A90: 663754 | B90: 17.12.2024 | C90: 187538 | D90: 31.12.2024 | I90: 0 | J90: B | K90: 19107 | L90: 900001 | M90: 2.938,81 | P90: ******************* | R90: ******************* | S90: ******************* | AA90: 2938.81
A91: 386461 | B91: 26.07.2024 | C91: 156970 | D91: 17.07.2024 | H91: 1 | I91: 0 | J91: B | K91: 19107 | L91: 900000 | M91: 2.906,15 | P91: ******************* | R91: ******************* | S91: ******************* | AA91: 2906.15
A92: 607032 | B92: 15.11.2024 | C92: 186060 | D92: 08.11.2024 | H92: 1 | I92: 0 | J92: B | K92: 19107 | L92: 2000 | M92: 2.906,15 | P92: ******************* | R92: ******************* | S92: ******************* | AA92: 2906.15
A93: 518437 | B93: 25.09.2024 | C93: 184557 | D93: 23.09.2024 | H93: 1 | I93: 0 | J93: B | K93: 19107 | L93: 2000 | M93: 2.849,26 | P93: ******************* | R93: ******************* | S93: ******************* | AA93: 2849.26
A94: 137467 | B94: 31.03.2024 | C94: 53925 | D94: 12.03.2024 | H94: 1 | I94: 0 | J94: B | K94: 19107 | L94: 900000 | N94: 2.832,20 | P94: ******************* | R94: ******************* | S94: ******************* | AA94: 2832.2
A95: 323186 | B95: 30.06.2024 | C95: 131204 | D95: 21.06.2024 | H95: 1 | I95: 0 | J95: B | K95: 19107 | L95: 900000 | M95: 2.828,16 | P95: ******************* | R95: ******************* | S95: ******************* | AA95: 2828.16
A96: 390064 | B96: 26.07.2024 | C96: 157119 | D96: 24.07.2024 | H96: 1 | I96: 0 | J96: B | K96: 19107 | L96: 900000 | N96: 2.828,16 | P96: ******************* | R96: ******************* | S96: ******************* | AA96: 2828.16
A97: 3753 | B97: 31.01.2024 | C97: 141 | D97: 17.01.2024 | H97: 1 | I97: 0 | J97: B | K97: 19107 | L97: 900000 | M97: 2.803,88 | P97: ******************* | R97: ******************* | S97: ******************* | AA97: 2803.88
A98: 8599 | B98: 31.01.2024 | C98: 344 | D98: 30.01.2024 | H98: 1 | I98: 0 | J98: B | K98: 19107 | L98: 900000 | N98: 2.803,88 | P98: ******************* | R98: ******************* | S98: ******************* | AA98: 2803.88
A99: 136577 | B99: 31.03.2024 | C99: 53885 | D99: 08.03.2024 | H99: 1 | I99: 0 | J99: B | K99: 19107 | L99: 900000 | M99: 2.626,24 | P99: ******************* | R99: ******************* | S99: ******************* | AA99: 2626.24
A100: 144370 | B100: 31.03.2024 | C100: 54202 | D100: 02.04.2024 | H100: 1 | I100: 0 | J100: B | K100: 19107 | L100: 900000 | N100: 2.626,24 | P100: ******************* | R100: ******************* | S100: ******************* | AA100: 2626.24
A101: 317073 | B101: 30.06.2024 | C101: 130946 | D101: 07.06.2024 | H101: 1 | I101: 0 | J101: B | K101: 19107 | L101: 900000 | M101: 2.626,24 | P101: ******************* | R101: ******************* | S101: ******************* | AA101: 2626.24
A102: 381668 | B102: 26.07.2024 | C102: 156777 | D102: 05.07.2024 | H102: 1 | I102: 0 | J102: B | K102: 19107 | L102: 900000 | N102: 2.626,24 | P102: ******************* | R102: ******************* | S102: ******************* | AA102: 2626.24
A103: 501912 | B103: 05.09.2024 | C103: 184090 | D103: 02.09.2024 | H103: 1 | I103: 0 | J103: B | K103: 19107 | L103: 2000 | M103: 2.626,24 | P103: ******************* | R103: ******************* | S103: ******************* | AA103: 2626.24
A104: 622883 | B104: 02.12.2024 | C104: 186657 | D104: 02.12.2024 | H104: 1 | I104: 0 | J104: B | K104: 19107 | L104: 800001 | N104: 2.626,24 | P104: ******************* | R104: ******************* | S104: ******************* | AA104: 2626.24
A105: 883 | B105: 31.01.2024 | C105: 29 | D105: 05.01.2024 | H105: 1 | I105: 0 | J105: B | K105: 19107 | L105: 900000 | M105: 2.573,26 | P105: ******************* | R105: ******************* | S105: ******************* | AA105: 2573.26
A106: 8571 | B106: 31.01.2024 | C106: 343 | D106: 30.01.2024 | H106: 1 | I106: 0 | J106: B | K106: 19107 | L106: 900000 | N106: 2.573,26 | P106: ******************* | R106: ******************* | S106: ******************* | AA106: 2573.26
A107: 663763 | B107: 17.12.2024 | C107: 187541 | D107: 20.01.2025 | I107: 0 | J107: B | K107: 19107 | L107: 900001 | M107: 2.553,75 | P107: ******************* | R107: ******************* | S107: ******************* | AA107: 2553.75
A108: 674182 | B108: 31.12.2024 | C108: 187794 | D108: 31.12.2024 | I108: 0 | J108: B | K108: 19107 | L108: 900001 | M108: 2.522,82 | P108: ******************* | R108: ******************* | S108: ******************* | AA108: 2522.82
A109: 651395 | B109: 06.12.2024 | C109: 187008 | D109: 04.12.2024 | H109: 1 | I109: 0 | J109: B | K109: 19107 | L109: 2000 | M109: 2.500,00 | P109: ******************* | R109: ******************* | S109: ******************* | AA109: 2500
A110: 2323 | B110: 31.01.2024 | C110: 82 | D110: 12.01.2024 | H110: 1 | I110: 0 | J110: B | K110: 19107 | L110: 900000 | N110: 2.381,60 | P110: ******************* | R110: ******************* | S110: ******************* | AA110: 2381.6
A111: 66376 | B111: 29.02.2024 | C111: 26417 | D111: 07.02.2024 | H111: 1 | I111: 0 | J111: B | K111: 19107 | L111: 900000 | N111: 2.368,00 | P111: ******************* | R111: ******************* | S111: ******************* | AA111: 2368
A112: 607037 | B112: 15.11.2024 | C112: 186060 | D112: 04.11.2024 | H112: 1 | I112: 0 | J112: B | K112: 19107 | L112: 2000 | M112: 2.263,72 | P112: ******************* | R112: ******************* | S112: ******************* | AA112: 2263.72
A113: 7772 | B113: 31.01.2024 | C113: 312 | D113: 26.01.2024 | H113: 1 | I113: 0 | J113: B | K113: 19107 | L113: 900000 | M113: 2.175,39 | P113: ******************* | R113: ******************* | S113: ******************* | AA113: 2175.39
A114: 73603 | B114: 29.02.2024 | C114: 26712 | D114: 27.02.2024 | H114: 1 | I114: 0 | J114: B | K114: 19107 | L114: 900000 | N114: 2.175,39 | P114: ******************* | R114: ******************* | S114: ******************* | AA114: 2175.39
A115: 136136 | B115: 31.03.2024 | C115: 53866 | D115: 06.03.2024 | H115: 1 | I115: 0 | J115: B | K115: 19107 | L115: 900000 | M115: 2.115,00 | P115: ******************* | R115: ******************* | S115: ******************* | AA115: 2115
A116: 380359 | B116: 26.07.2024 | C116: 156715 | D116: 03.07.2024 | H116: 1 | I116: 0 | J116: B | K116: 19107 | L116: 900000 | N116: 2.096,65 | P116: ******************* | R116: ******************* | S116: ******************* | AA116: 2096.65
A117: 663757 | B117: 17.12.2024 | C117: 187539 | D117: 31.12.2024 | I117: 0 | J117: B | K117: 19107 | L117: 900001 | M117: 2.075,38 | P117: ******************* | R117: ******************* | S117: ******************* | AA117: 2075.38
A118: 136582 | B118: 31.03.2024 | C118: 53886 | D118: 08.03.2024 | H118: 1 | I118: 0 | J118: B | K118: 19107 | L118: 900000 | M118: 1.869,88 | P118: ******************* | R118: ******************* | S118: ******************* | AA118: 1869.88
A119: 144372 | B119: 31.03.2024 | C119: 54202 | D119: 02.04.2024 | H119: 1 | I119: 0 | J119: B | K119: 19107 | L119: 900000 | N119: 1.869,88 | P119: ******************* | R119: ******************* | S119: ******************* | AA119: 1869.88
A120: 138861 | B120: 31.03.2024 | C120: 53969 | D120: 14.03.2024 | H120: 1 | I120: 0 | J120: B | K120: 19107 | L120: 900000 | N120: 1.785,00 | P120: ******************* | R120: ******************* | S120: ******************* | AA120: 1785
A121: 144920 | B121: 31.03.2024 | C121: 54253 | D121: 29.05.2024 | H121: 1 | I121: 0 | J121: B | K121: 19107 | L121: 900000 | M121: 1.785,00 | P121: ******************* | R121: ******************* | S121: ******************* | AA121: 1785
A122: 202083 | B122: 30.04.2024 | C122: 80083 | D122: 25.04.2024 | H122: 1 | I122: 0 | J122: B | K122: 19107 | L122: 900000 | M122: 1.785,00 | P122: ******************* | R122: ******************* | S122: ******************* | AA122: 1785
A123: 442851 | B123: 16.08.2024 | C123: 183507 | D123: 18.07.2024 | H123: 1 | I123: 0 | J123: B | K123: 19107 | L123: 2000 | M123: 1.785,00 | P123: ******************* | R123: ******************* | S123: ******************* | AA123: 1785
A124: 622939 | B124: 02.12.2024 | C124: 186681 | D124: 02.12.2024 | H124: 1 | I124: 0 | J124: B | K124: 19107 | L124: 800001 | N124: 1.785,00 | P124: ******************* | R124: ******************* | S124: ******************* | AA124: 1785
A125: 663760 | B125: 17.12.2024 | C125: 187540 | D125: 31.12.2024 | I125: 0 | J125: B | K125: 19107 | L125: 900001 | M125: 1.772,91 | P125: ******************* | R125: ******************* | S125: ******************* | AA125: 1772.91
A126: 651396 | B126: 06.12.2024 | C126: 187009 | D126: 04.12.2024 | H126: 1 | I126: 0 | J126: B | K126: 19107 | L126: 2000 | M126: 1.666,65 | P126: ******************* | R126: ******************* | S126: ******************* | AA126: 1666.65
A127: 198502 | B127: 30.04.2024 | C127: 79939 | D127: 17.04.2024 | H127: 1 | I127: 0 | J127: B | K127: 19107 | L127: 900000 | M127: 1.662,85 | P127: ******************* | R127: ******************* | S127: ******************* | AA127: 1662.85
A128: 263537 | B128: 31.05.2024 | C128: 105606 | D128: 24.05.2024 | H128: 1 | I128: 0 | J128: B | K128: 19107 | L128: 900000 | N128: 1.662,85 | P128: ******************* | R128: ******************* | S128: ******************* | AA128: 1662.85
A129: 607036 | B129: 15.11.2024 | C129: 186060 | D129: 04.11.2024 | H129: 1 | I129: 0 | J129: B | K129: 19107 | L129: 2000 | M129: 1.642,82 | P129: ******************* | R129: ******************* | S129: ******************* | AA129: 1642.82
A130: 389735 | B130: 26.07.2024 | C130: 157105 | D130: 24.07.2024 | H130: 1 | I130: 0 | J130: B | K130: 19107 | L130: 900000 | M130: 1.631,75 | P130: ******************* | R130: ******************* | S130: ******************* | AA130: =N130+M130 -> 1631.75
A131: 68055 | B131: 29.02.2024 | C131: 26474 | D131: 13.02.2024 | H131: 1 | I131: 0 | J131: B | K131: 19107 | L131: 900000 | M131: 1.598,57 | P131: ******************* | R131: ******************* | S131: ******************* | AA131: 1598.57
A132: 74392 | B132: 29.02.2024 | C132: 26740 | D132: 28.02.2024 | H132: 1 | I132: 0 | J132: B | K132: 19107 | L132: 900000 | N132: 1.598,57 | P132: ******************* | R132: ******************* | S132: ******************* | AA132: 1598.57
A133: 442693 | B133: 15.08.2024 | C133: 183415 | D133: 08.08.2024 | H133: 1 | I133: 0 | J133: B | K133: 19107 | L133: 2000 | M133: 1.598,57 | P133: ******************* | R133: ******************* | S133: ******************* | AA133: 1598.57
A134: 622923 | B134: 02.12.2024 | C134: 186674 | D134: 02.12.2024 | H134: 1 | I134: 0 | J134: B | K134: 19107 | L134: 800001 | N134: 1.598,57 | P134: ******************* | R134: ******************* | S134: ******************* | AA134: 1598.57
A135: 607029 | B135: 15.11.2024 | C135: 186060 | D135: 04.11.2024 | H135: 1 | I135: 0 | J135: B | K135: 19107 | L135: 2000 | M135: 1.523,20 | P135: ******************* | R135: ******************* | S135: ******************* | AA135: 1523.2
A136: 622961 | B136: 02.12.2024 | C136: 186689 | D136: 02.12.2024 | H136: 1 | I136: 0 | J136: B | K136: 19107 | L136: 800001 | N136: 1.523,20 | P136: ******************* | R136: ******************* | S136: ******************* | AA136: 1523.2
A137: 663751 | B137: 17.12.2024 | C137: 187537 | D137: 31.12.2024 | I137: 0 | J137: B | K137: 19107 | L137: 900001 | M137: 1.451,40 | P137: ******************* | R137: ******************* | S137: ******************* | AA137: 1451.4
A138: 665074 | B138: 18.12.2024 | C138: 187595 | D138: 31.12.2024 | I138: 0 | J138: B | K138: 19107 | L138: 900001 | M138: 1.380,73 | P138: ******************* | R138: ******************* | S138: ******************* | AA138: 1380.73
A139: 386470 | B139: 26.07.2024 | C139: 156970 | D139: 17.07.2024 | H139: 1 | I139: 0 | J139: B | K139: 19107 | L139: 900000 | M139: 1.344,98 | P139: ******************* | R139: ******************* | S139: ******************* | AA139: 1344.98
A140: 562839 | B140: 22.10.2024 | C140: 185515 | D140: 08.10.2024 | H140: 1 | I140: 0 | J140: B | K140: 19107 | L140: 2000 | M140: 1.344,98 | P140: ******************* | R140: ******************* | S140: ******************* | AA140: 1344.98
A141: 622919 | B141: 02.12.2024 | C141: 186672 | D141: 02.12.2024 | H141: 1 | I141: 0 | J141: B | K141: 19107 | L141: 800001 | N141: 1.344,98 | P141: ******************* | R141: ******************* | S141: ******************* | AA141: 1344.98
A142: 195826 | B142: 30.04.2024 | C142: 79822 | D142: 11.04.2024 | H142: 1 | I142: 0 | J142: B | K142: 19107 | L142: 900000 | M142: 1.314,64 | P142: ******************* | R142: ******************* | S142: ******************* | AA142: 1314.64
A143: 263539 | B143: 31.05.2024 | C143: 105606 | D143: 24.05.2024 | H143: 1 | I143: 0 | J143: B | K143: 19107 | L143: 900000 | N143: 1.314,64 | P143: ******************* | R143: ******************* | S143: ******************* | AA143: 1314.64
A144: 144579 | B144: 31.03.2024 | C144: 54234 | D144: 11.04.2024 | H144: 1 | I144: 0 | J144: B | K144: 19107 | L144: 900000 | M144: 1.269,82 | P144: ******************* | R144: ******************* | S144: ******************* | AA144: 1269.82
A145: 263513 | B145: 31.05.2024 | C145: 105605 | D145: 24.05.2024 | H145: 1 | I145: 0 | J145: B | K145: 19107 | L145: 900000 | N145: 1.269,82 | P145: ******************* | R145: ******************* | S145: ******************* | AA145: 1269.82
A146: 2149 | B146: 31.01.2024 | C146: 73 | D146: 12.01.2024 | H146: 1 | I146: 0 | J146: B | K146: 19107 | L146: 900000 | M146: 1.253,23 | P146: ******************* | R146: ******************* | S146: ******************* | AA146: 1253.23
A147: 8565 | B147: 31.01.2024 | C147: 342 | D147: 30.01.2024 | H147: 1 | I147: 0 | J147: B | K147: 19107 | L147: 900000 | N147: 1.253,23 | P147: ******************* | R147: ******************* | S147: ******************* | AA147: 1253.23
A148: 262555 | B148: 31.05.2024 | C148: 105567 | D148: 23.05.2024 | H148: 1 | I148: 0 | J148: B | K148: 19107 | L148: 900000 | M148: 1.228,16 | P148: ******************* | R148: ******************* | S148: ******************* | AA148: 1228.16
A149: 390054 | B149: 26.07.2024 | C149: 157118 | D149: 24.07.2024 | H149: 1 | I149: 0 | J149: B | K149: 19107 | L149: 900000 | N149: 1.228,16 | P149: ******************* | R149: ******************* | S149: ******************* | AA149: 1228.16
A150: 2142 | B150: 31.01.2024 | C150: 73 | D150: 12.01.2024 | H150: 1 | I150: 0 | J150: B | K150: 19107 | L150: 900000 | M150: 1.213,80 | P150: ******************* | R150: ******************* | S150: ******************* | AA150: 1213.8
A151: 8555 | B151: 31.01.2024 | C151: 342 | D151: 30.01.2024 | H151: 1 | I151: 0 | J151: B | K151: 19107 | L151: 900000 | N151: 1.213,80 | P151: ******************* | R151: ******************* | S151: ******************* | AA151: 1213.8
A152: 7763 | B152: 31.01.2024 | C152: 312 | D152: 26.01.2024 | H152: 1 | I152: 0 | J152: B | K152: 19107 | L152: 900000 | M152: 1.201,22 | P152: ******************* | R152: ******************* | S152: ******************* | AA152: 1201.22
A153: 73567 | B153: 29.02.2024 | C153: 26710 | D153: 27.02.2024 | H153: 1 | I153: 0 | J153: B | K153: 19107 | L153: 900000 | N153: 1.201,22 | P153: ******************* | R153: ******************* | S153: ******************* | AA153: 1201.22
A154: 199693 | B154: 30.04.2024 | C154: 79988 | D154: 19.04.2024 | H154: 1 | I154: 0 | J154: B | K154: 19107 | L154: 900000 | M154: 1.192,77 | P154: ******************* | R154: ******************* | S154: ******************* | AA154: 1192.77
A155: 204574 | B155: 30.04.2024 | C155: 80194 | D155: 08.05.2024 | H155: 1 | I155: 0 | J155: B | K155: 19107 | L155: 900000 | M155: 1.192,77 | P155: ******************* | R155: ******************* | S155: ******************* | AA155: 1192.77
A156: 204578 | B156: 30.04.2024 | C156: 80194 | D156: 08.05.2024 | H156: 1 | I156: 0 | J156: B | K156: 19107 | L156: 900000 | N156: 1.192,77 | P156: ******************* | R156: ******************* | S156: ******************* | AA156: 1192.77
A157: 263515 | B157: 31.05.2024 | C157: 105605 | D157: 24.05.2024 | H157: 1 | I157: 0 | J157: B | K157: 19107 | L157: 900000 | N157: 1.192,77 | P157: ******************* | R157: ******************* | S157: ******************* | AA157: 1192.77
A158: 255267 | B158: 31.05.2024 | C158: 105250 | D158: 03.05.2024 | H158: 1 | I158: 0 | J158: B | K158: 19107 | L158: 900000 | M158: 1.181,43 | P158: ******************* | R158: ******************* | S158: ******************* | AA158: 1181.43
A159: 265731 | B159: 31.05.2024 | C159: 105689 | D159: 31.05.2024 | H159: 1 | I159: 0 | J159: B | K159: 19107 | L159: 900000 | N159: 1.181,43 | P159: ******************* | R159: ******************* | S159: ******************* | AA159: 1181.43
A160: 199244 | B160: 30.04.2024 | C160: 79971 | D160: 18.04.2024 | H160: 1 | I160: 0 | J160: B | K160: 19107 | L160: 900000 | M160: 1.172,34 | P160: ******************* | R160: ******************* | S160: ******************* | AA160: 1172.34
A161: 263527 | B161: 31.05.2024 | C161: 105606 | D161: 24.05.2024 | H161: 1 | I161: 0 | J161: B | K161: 19107 | L161: 900000 | N161: 1.172,34 | P161: ******************* | R161: ******************* | S161: ******************* | AA161: 1172.34
A162: 607035 | B162: 15.11.2024 | C162: 186060 | D162: 04.11.2024 | H162: 1 | I162: 0 | J162: B | K162: 19107 | L162: 2000 | M162: 1.159,64 | P162: ******************* | R162: ******************* | S162: ******************* | AA162: 1159.64
A163: 195833 | B163: 30.04.2024 | C163: 79822 | D163: 11.04.2024 | H163: 1 | I163: 0 | J163: B | K163: 19107 | L163: 900000 | M163: 1.137,85 | P163: ******************* | R163: ******************* | S163: ******************* | AA163: 1137.85
A164: 199248 | B164: 30.04.2024 | C164: 79971 | D164: 18.04.2024 | H164: 1 | I164: 0 | J164: B | K164: 19107 | L164: 900000 | N164: 1.137,85 | P164: ******************* | R164: ******************* | S164: ******************* | AA164: 1137.85
A165: 654760 | B165: 09.12.2024 | C165: 187172 | D165: 18.11.2024 | H165: 1 | I165: 0 | J165: B | K165: 19107 | L165: 2000 | M165: 1.124,42 | P165: ******************* | R165: ******************* | S165: ******************* | AA165: 1124.42
A166: 562833 | B166: 22.10.2024 | C166: 185514 | D166: 14.10.2024 | H166: 1 | I166: 0 | J166: B | K166: 19107 | L166: 2000 | M166: 1.103,01 | P166: ******************* | R166: ******************* | S166: ******************* | AA166: 1103.01
A167: 613174 | B167: 21.11.2024 | C167: 186230 | D167: 21.11.2024 | H167: 1 | I167: 0 | J167: B | K167: 19107 | L167: 800001 | N167: 1.103,01 | P167: ******************* | R167: ******************* | S167: ******************* | AA167: 1103.01
A168: 72470 | B168: 29.02.2024 | C168: 26664 | D168: 26.02.2024 | H168: 1 | I168: 0 | J168: B | K168: 19107 | L168: 900000 | M168: 1.067,08 | P168: ******************* | R168: ******************* | S168: ******************* | AA168: 1067.08
A169: 74402 | B169: 29.02.2024 | C169: 26740 | D169: 28.02.2024 | H169: 1 | I169: 0 | J169: B | K169: 19107 | L169: 900000 | N169: 1.067,08 | P169: ******************* | R169: ******************* | S169: ******************* | AA169: 1067.08
A170: 195838 | B170: 30.04.2024 | C170: 79822 | D170: 11.04.2024 | H170: 1 | I170: 0 | J170: B | K170: 19107 | L170: 900000 | M170: 1.067,08 | P170: ******************* | R170: ******************* | S170: ******************* | AA170: 1067.08
A171: 263509 | B171: 31.05.2024 | C171: 105605 | D171: 24.05.2024 | H171: 1 | I171: 0 | J171: B | K171: 19107 | L171: 900000 | N171: 1.067,08 | P171: ******************* | R171: ******************* | S171: ******************* | AA171: 1067.08
A172: 533142 | B172: 07.10.2024 | C172: 184988 | D172: 01.10.2024 | H172: 1 | I172: 0 | J172: B | K172: 19107 | L172: 2000 | M172: 1.067,08 | P172: ******************* | R172: ******************* | S172: ******************* | AA172: 1067.08
A173: 600234 | B173: 08.11.2024 | C173: 185934 | D173: 01.07.2024 | H173: 1 | I173: 0 | J173: B | K173: 19107 | L173: 2000 | M173: 1.067,08 | P173: ******************* | R173: ******************* | S173: ******************* | AA173: 1067.08
A174: 622937 | B174: 02.12.2024 | C174: 186680 | D174: 02.12.2024 | H174: 1 | I174: 0 | J174: B | K174: 19107 | L174: 800001 | N174: 1.067,08 | P174: ******************* | R174: ******************* | S174: ******************* | AA174: 1067.08
A175: 449406 | B175: 23.08.2024 | C175: 183674 | D175: 31.07.2024 | H175: 1 | I175: 0 | J175: B | K175: 19107 | L175: 62100 | M175: 1.054,49 | P175: ******************* | R175: ******************* | S175: ******************* | AA175: 1054.49
A176: 622935 | B176: 02.12.2024 | C176: 186679 | D176: 02.12.2024 | H176: 1 | I176: 0 | J176: B | K176: 19107 | L176: 800001 | N176: 1.054,49 | P176: ******************* | R176: ******************* | S176: ******************* | AA176: 1054.49
A177: 317929 | B177: 30.06.2024 | C177: 130981 | D177: 11.06.2024 | H177: 1 | I177: 0 | J177: B | K177: 19107 | L177: 900000 | M177: 1.039,75 | P177: ******************* | R177: ******************* | S177: ******************* | AA177: 1039.75
A178: 622798 | B178: 29.11.2024 | C178: 186628 | D178: 22.11.2024 | H178: 1 | I178: 0 | J178: B | K178: 19107 | L178: 2000 | M178: 1.001,39 | P178: ******************* | R178: ******************* | S178: ******************* | AA178: 1001.39
A179: 454801 | B179: 29.08.2024 | C179: 183787 | D179: 26.08.2024 | H179: 1 | I179: 0 | J179: B | K179: 19107 | L179: 2000 | M179: 995,83 | P179: ******************* | R179: ******************* | S179: ******************* | AA179: 995.83
A180: 613172 | B180: 21.11.2024 | C180: 186229 | D180: 21.11.2024 | H180: 1 | I180: 0 | J180: B | K180: 19107 | L180: 800001 | N180: 995,83 | P180: ******************* | R180: ******************* | S180: ******************* | AA180: 995.83
A181: 68937 | B181: 29.02.2024 | C181: 26511 | D181: 15.02.2024 | H181: 1 | I181: 0 | J181: B | K181: 19107 | L181: 900000 | M181: 994,05 | P181: ******************* | R181: ******************* | S181: ******************* | AA181: 994.05
A182: 72474 | B182: 29.02.2024 | C182: 26664 | D182: 26.02.2024 | H182: 1 | I182: 0 | J182: B | K182: 19107 | L182: 900000 | N182: 994,05 | P182: ******************* | R182: ******************* | S182: ******************* | AA182: 994.05
A183: 562618 | B183: 21.10.2024 | C183: 185479 | D183: 05.10.2024 | H183: 1 | I183: 0 | J183: B | K183: 19107 | L183: 2000 | M183: 973,07 | P183: ******************* | R183: ******************* | S183: ******************* | AA183: 973.07
A184: 622967 | B184: 02.12.2024 | C184: 186692 | D184: 02.12.2024 | H184: 1 | I184: 0 | J184: B | K184: 19107 | L184: 800001 | N184: 973,07 | P184: ******************* | R184: ******************* | S184: ******************* | AA184: 973.07
A185: 9353 | B185: 31.01.2024 | C185: 374 | D185: 01.02.2024 | H185: 1 | I185: 0 | J185: B | K185: 19107 | L185: 900000 | M185: 959,72 | P185: ******************* | R185: ******************* | S185: ******************* | AA185: 959.72
A186: 73595 | B186: 29.02.2024 | C186: 26712 | D186: 27.02.2024 | H186: 1 | I186: 0 | J186: B | K186: 19107 | L186: 900000 | N186: 959,72 | P186: ******************* | R186: ******************* | S186: ******************* | AA186: 959.72
A187: 71109 | B187: 29.02.2024 | C187: 26603 | D187: 21.02.2024 | H187: 1 | I187: 0 | J187: B | K187: 19107 | L187: 900000 | M187: 956,62 | P187: ******************* | R187: ******************* | S187: ******************* | AA187: 956.62
A188: 137455 | B188: 31.03.2024 | C188: 53924 | D188: 12.03.2024 | H188: 1 | I188: 0 | J188: B | K188: 19107 | L188: 900000 | N188: 956,62 | P188: ******************* | R188: ******************* | S188: ******************* | AA188: 956.62
A189: 3737 | B189: 31.01.2024 | C189: 141 | D189: 17.01.2024 | H189: 1 | I189: 0 | J189: B | K189: 19107 | L189: 900000 | M189: 950,00 | P189: ******************* | R189: ******************* | S189: ******************* | AA189: 950
A190: 8547 | B190: 31.01.2024 | C190: 342 | D190: 30.01.2024 | H190: 1 | I190: 0 | J190: B | K190: 19107 | L190: 900000 | N190: 950,00 | P190: ******************* | R190: ******************* | S190: ******************* | AA190: 950
A191: 204417 | B191: 30.04.2024 | C191: 80182 | D191: 02.05.2024 | H191: 1 | I191: 0 | J191: B | K191: 19107 | L191: 900000 | N191: 949,18 | P191: ******************* | R191: ******************* | S191: ******************* | AA191: 949.18
A192: 8533 | B192: 31.01.2024 | C192: 341 | D192: 30.01.2024 | H192: 1 | I192: 0 | J192: B | K192: 19107 | L192: 900000 | N192: 916,78 | P192: ******************* | R192: ******************* | S192: ******************* | AA192: 916.78
A193: 454806 | B193: 29.08.2024 | C193: 183788 | D193: 19.08.2024 | H193: 1 | I193: 0 | J193: B | K193: 19107 | L193: 2000 | M193: 903,97 | P193: ******************* | R193: ******************* | S193: ******************* | AA193: 903.97
A194: 613170 | B194: 21.11.2024 | C194: 186228 | D194: 21.11.2024 | H194: 1 | I194: 0 | J194: B | K194: 19107 | L194: 800001 | N194: 903,97 | P194: ******************* | R194: ******************* | S194: ******************* | AA194: =N194+M194 -> 903.97
A195: 622795 | B195: 29.11.2024 | C195: 186627 | D195: 20.11.2024 | H195: 1 | I195: 0 | J195: B | K195: 19107 | L195: 2000 | M195: 889,32 | P195: ******************* | R195: ******************* | S195: ******************* | AA195: 889.32
A196: 67509 | B196: 29.02.2024 | C196: 26456 | D196: 12.02.2024 | H196: 1 | I196: 0 | J196: B | K196: 19107 | L196: 900000 | M196: 883,67 | P196: ******************* | R196: ******************* | S196: ******************* | AA196: 883.67
A197: 74382 | B197: 29.02.2024 | C197: 26739 | D197: 28.02.2024 | H197: 1 | I197: 0 | J197: B | K197: 19107 | L197: 900000 | N197: 883,67 | P197: ******************* | R197: ******************* | S197: ******************* | AA197: 883.67
A198: 143396 | B198: 31.03.2024 | C198: 54158 | D198: 28.03.2024 | H198: 1 | I198: 0 | J198: B | K198: 19107 | L198: 900000 | M198: 858,25 | P198: ******************* | R198: ******************* | S198: ******************* | AA198: 858.25
A199: 204395 | B199: 30.04.2024 | C199: 80180 | D199: 02.05.2024 | H199: 1 | I199: 0 | J199: B | K199: 19107 | L199: 900000 | N199: 858,25 | P199: ******************* | R199: ******************* | S199: ******************* | AA199: 858.25
A200: 666614 | B200: 20.12.2024 | C200: 187641 | D200: 13.12.2024 | H200: 1 | I200: 0 | J200: B | K200: 19107 | L200: 2000 | M200: 845,40 | P200: ******************* | R200: ******************* | S200: ******************* | AA200: 845.4
... 493 more rows
